{"text_format":"1","workbook":"xlsx","n_sheets":9,"sheets":["Copertina","SINTESI","ANALISI GENERALE","ANALISI REQUISITI ANTINCENDIO","ANALISI DOTAZIONI INTERNE","ORGANIZZAZIONE","T_riverb","Riepilogo AC","Riepilogo AM"],"not_rendered":{"charts":0,"images":1,"macros":1,"external_links":0,"defined_names":119,"comments":5,"pivot_tables":0},"unopened":[],"bounds":{"document_bytes":16777216,"sheet_cells":100000,"rows_first":2000,"rows_last":500,"rows_between":2000,"halvings":0,"cell_chars":16384,"cell_head_chars":4096},"cells_cut":0,"cells_raw":0,"read":"whole","date_system":"1900"}

{"sheet":"Copertina","index":0,"n_rows":0,"n_cols":0,"rows_kept":0,"cut":false,"hidden":false,"merged":[]}

{"sheet":"SINTESI","index":1,"n_rows":50,"n_cols":18,"rows_kept":50,"cut":false,"hidden":false,"merged":[[15,16,15,17],[3,15,3,17],[4,15,4,17],[5,15,5,17],[16,0,28,0],[42,0,42,17],[44,0,46,1],[16,16,16,17],[28,13,28,15],[40,2,40,3],[28,16,28,17],[44,5,45,5],[29,16,29,17],[30,13,30,15],[12,1,14,2],[12,13,14,15],[44,2,45,2],[16,13,16,15],[22,1,22,2],[23,1,23,2],[22,13,22,15],[17,1,17,2],[31,0,35,0],[36,1,36,2],[36,16,36,17],[46,3,46,4],[35,16,35,17],[44,3,45,4],[32,13,32,15],[33,13,33,15],[30,1,30,2],[32,1,32,2],[33,1,33,2],[40,11,40,13],[29,1,29,2],[28,1,28,2],[23,13,23,15],[27,1,27,2],[40,0,40,1],[29,13,29,15],[40,6,40,8],[25,1,25,2],[26,1,26,2],[36,13,36,15],[7,1,7,2],[8,1,8,2],[9,1,9,2],[10,1,10,2],[12,5,12,9],[13,5,13,9],[8,8,8,9],[8,15,8,16],[7,11,7,13],[10,12,10,16],[8,12,8,13],[9,15,9,16],[10,3,10,5],[10,6,10,7],[8,6,8,7],[9,6,9,7],[9,13,9,14],[7,3,7,5],[8,3,8,5],[7,6,7,7],[7,8,7,10],[10,8,10,10],[12,16,14,17],[12,12,14,12],[12,0,14,0],[15,1,15,2],[15,13,15,15],[18,1,18,2],[26,13,26,15],[25,13,25,15],[12,11,13,11],[35,1,35,2],[9,3,9,5],[12,3,13,4],[29,0,30,0],[31,1,31,2],[20,1,20,2],[20,13,20,15],[21,1,21,2],[21,13,21,15],[34,1,34,2],[9,8,9,11],[19,1,19,2],[19,13,19,15],[16,1,16,2],[24,1,24,2],[31,13,31,15],[35,13,35,15],[17,16,17,17],[31,16,31,17],[34,13,34,15],[27,13,27,15],[18,13,18,15],[18,16,18,17],[24,13,24,15],[19,16,19,17],[22,16,22,17],[23,16,23,17],[25,16,25,17],[26,16,26,17],[30,16,30,17],[27,16,27,17],[20,16,20,17],[21,16,21,17],[32,16,32,17],[33,16,33,17],[34,16,34,17],[24,16,24,17],[17,13,17,15]]}
[]
["Analisi conformità spazio da adibire a COWORKING"]
[]
[null,null,null,null,null,null,null,null,null,null,null,null,null,null,null,"Codice del documento:"]
["CHECK LIST DI VERIFICA SPAZIO COWORKING",null,null,null,null,null,null,null,null,null,null,null,null,null,null,"M01"]
[]
[]
["CITTA'","--",null,"A1 INQUADRAMENTO LOGISTICO TERRITORIALE",null,null,null,null,"REFERENTE",null,null,"--",null,null,"CONTATTO","--","DATA","--"]
["VIA","--",null,"A2 TIPOLOGIA DI EDIFICIO \nAnno instaurazione destinazione ufficio",null,null,null,null,"N° Piano coworking",null,null,null,"Superficie Piano coworking m2",null,null,"Numero piani edificio"]
["CIVICO","--",null,"B1 DIMENSIONI DELLE SEDI \nAffollamento del piano coworking (n° persone)",null,null,null,null,"AFFOLLAMENTO POTENZIALE ALTRI PIANI (Indicare il n° massimo di persone potenzialmente presenti su tutti gli altri piani)",null,null,null,null,{"$f":"IF(OR(APC=\"\",SPC=\"\"),\"\",IF(APC>SPC/10,\"NC \"&CHAR(10)&\"Meno di 10 mq per lavoratore\",\"C \"&CHAR(10)&\"Almeno 10 mq per lavoratore\"))","v":""},null,"Superficie totale uffici Edificio m2"]
["PIANO","--",null,"B2 CLASSIFICAZIONE DEGLI SPAZI Tipologia uffici",null,null,null,null,"CATEGORIA UFFICI",null,null,{"$f":"IF(AND(SUM(G10,M10)<>0,SUM(G10,M10)<100),\"C.1\",IF(AND(SUM(G10,M10)>=100,SUM(G10,M10)<300),\"C.2\",IF(SUM(G10,M10)>=300,\"C.3\",\"\")))","v":""},"SE È PRESENTE UN CPI O SCIA ANTINCENDIO SONO ANCORA IN CORSO DI VALIDITÀ?"]
[]
["N.","DESCRIZIONE DEL RISCONTRO",null,"ESITO DEI RISCONTRI",null,"VALUTAZIONE",null,null,null,null,null,"AZIONI CORRETTIVE","N°","RIEPOLOGO PUNTI AZIONI CORRETTIVE",null,null,"RIEPILOGO PUNTI AZIONI DI MIGLIORAMENTO"]
[null,null,null,null,null,"ESITO"]
[null,null,null,"COGENZE","PREFERENZE","CONFORME ","NON CONFORME","NON APPLICABILE","PRESENTE","ASSENTE","NON APPLICABILE","SI/NO"]
[0,"PREREQUISITI",null,{"$f":"'ANALISI GENERALE'!G16","v":10},{"$f":"IF(G16>0,\"NON IDONEO\",\"\")","v":""},{"$f":"'ANALISI GENERALE'!D16","v":0},{"$f":"'ANALISI GENERALE'!E16","v":0},{"$f":"'ANALISI GENERALE'!F16","v":0},null,null,null,{"$f":"IF(G16>0,\"SI\",\"NO\")","v":"NO"},1,{"$f":"IF('ANALISI GENERALE'!R16=\"\",\"\",'ANALISI GENERALE'!R16)","v":""}]
[1,"ANALISI GENERALE",null,{"$f":"'ANALISI GENERALE'!C95","v":"-"},{"$f":"'ANALISI GENERALE'!I95","v":"-"}]
[null,"A2.1 INQUADRAMENTO LOGISTICO TERRITORIALE",null,null,{"$f":"'ANALISI GENERALE'!K27","v":""},null,null,null,{"$f":"'ANALISI GENERALE'!H27","v":0},{"$f":"'ANALISI GENERALE'!I27","v":0},{"$f":"'ANALISI GENERALE'!J27","v":0},{"$f":"IF(G18>0,\"SI\",\"NO\")","v":"NO"},1,null,null,null,{"$f":"IF('ANALISI GENERALE'!S27=\"\",\"\",'ANALISI GENERALE'!S27)","v":""}]
[null,"A3 ANALISI DOCUMENTALE",null,{"$f":"'ANALISI GENERALE'!G36","v":""},null,{"$f":"'ANALISI GENERALE'!D36","v":0},{"$f":"'ANALISI GENERALE'!E36","v":0},{"$f":"'ANALISI GENERALE'!F36","v":0},null,null,null,{"$f":"IF(G19>0,\"SI\",\"NO\")","v":"NO"},2,{"$f":"IF('ANALISI GENERALE'!R36=\"\",\"\",'ANALISI GENERALE'!R36)","v":""}]
[null,"B2.1 CLASSIFICAZIONE DEGLI SPAZI: FUNZIONALITÀ",null,null,{"$f":"'ANALISI GENERALE'!K43","v":""},null,null,null,{"$f":"'ANALISI GENERALE'!H43","v":0},{"$f":"'ANALISI GENERALE'!I43","v":0},{"$f":"'ANALISI GENERALE'!J43","v":0},{"$f":"IF(G20>0,\"SI\",\"NO\")","v":"NO"},3,null,null,null,{"$f":"IF('ANALISI GENERALE'!S43=\"\",\"\",'ANALISI GENERALE'!S43)","v":""}]
[null,"D1 CARATTERISTICHE DIMENSIONALI",null,{"$f":"'ANALISI GENERALE'!G47","v":""},{"$f":"'ANALISI GENERALE'!K47","v":""},{"$f":"'ANALISI GENERALE'!D47","v":0},{"$f":"'ANALISI GENERALE'!E47","v":0},{"$f":"'ANALISI GENERALE'!F47","v":0},{"$f":"'ANALISI GENERALE'!H47","v":0},{"$f":"'ANALISI GENERALE'!I47","v":0},{"$f":"'ANALISI GENERALE'!J47","v":0},{"$f":"IF(G21>0,\"SI\",\"NO\")","v":"NO"},4,{"$f":"IF('ANALISI GENERALE'!R47=\"\",\"\",'ANALISI GENERALE'!R47)","v":""},null,null,{"$f":"IF('ANALISI GENERALE'!S47=\"\",\"\",'ANALISI GENERALE'!S47)","v":""}]
[null,"D2 NUMERO DI LAVORATORI AMMESSI",null,{"$f":"'ANALISI GENERALE'!G51","v":""},{"$f":"'ANALISI GENERALE'!K51","v":""},{"$f":"'ANALISI GENERALE'!D51","v":0},{"$f":"'ANALISI GENERALE'!E51","v":0},{"$f":"'ANALISI GENERALE'!F51","v":0},{"$f":"'ANALISI GENERALE'!H51","v":0},{"$f":"'ANALISI GENERALE'!I51","v":0},{"$f":"'ANALISI GENERALE'!J51","v":0},"NO",5,{"$f":"IF('ANALISI GENERALE'!R51=\"\",\"\",'ANALISI GENERALE'!R51)","v":""},null,null,{"$f":"IF('ANALISI GENERALE'!S51=\"\",\"\",'ANALISI GENERALE'!S51)","v":""}]
[null,"D3 DOTAZIONI E SPAZI ACCESSORI",null,{"$f":"'ANALISI GENERALE'!G55","v":""},{"$f":"'ANALISI GENERALE'!K55","v":""},{"$f":"'ANALISI GENERALE'!D55","v":0},{"$f":"'ANALISI GENERALE'!E55","v":0},{"$f":"'ANALISI GENERALE'!F55","v":0},{"$f":"'ANALISI GENERALE'!H55","v":0},{"$f":"'ANALISI GENERALE'!I55","v":0},{"$f":"'ANALISI GENERALE'!J55","v":0},"NO",6,{"$f":"IF('ANALISI GENERALE'!R55=\"\",\"\",'ANALISI GENERALE'!R55)","v":""},null,null,{"$f":"IF('ANALISI GENERALE'!S55=\"\",\"\",'ANALISI GENERALE'!S55)","v":""}]
[null,"D6 ACCESSIBILITÀ E BARRIERE ARCHITETTONICHE",null,null,{"$f":"'ANALISI GENERALE'!K65","v":""},null,null,null,{"$f":"'ANALISI GENERALE'!H65","v":0},{"$f":"'ANALISI GENERALE'!I65","v":0},{"$f":"'ANALISI GENERALE'!J65","v":0},"NO",7,null,null,null,{"$f":"IF('ANALISI GENERALE'!S65=\"\",\"\",'ANALISI GENERALE'!S65)","v":""}]
[null,"E1  ILLUMINAZIONE NATURALE E ARTIFICIALE",null,{"$f":"'ANALISI GENERALE'!G69","v":""},{"$f":"'ANALISI GENERALE'!K69","v":""},{"$f":"'ANALISI GENERALE'!D69","v":0},{"$f":"'ANALISI GENERALE'!E69","v":0},{"$f":"'ANALISI GENERALE'!F69","v":0},{"$f":"'ANALISI GENERALE'!H69","v":0},{"$f":"'ANALISI GENERALE'!I69","v":0},{"$f":"'ANALISI GENERALE'!J69","v":0},{"$f":"IF(G25>0,\"SI\",\"NO\")","v":"NO"},8,{"$f":"IF('ANALISI GENERALE'!R69=\"\",\"\",'ANALISI GENERALE'!R69)","v":""},null,null,{"$f":"IF('ANALISI GENERALE'!S69=\"\",\"\",'ANALISI GENERALE'!S69)","v":""}]
[null,"E2 AREAZIONE DEGLI AMBIENTI",null,null,{"$f":"'ANALISI GENERALE'!K78","v":""},null,null,null,{"$f":"'ANALISI GENERALE'!H78","v":0},{"$f":"'ANALISI GENERALE'!I78","v":0},{"$f":"'ANALISI GENERALE'!J78","v":0},"NO",9,null,null,null,{"$f":"IF('ANALISI GENERALE'!S78=\"\",\"\",'ANALISI GENERALE'!S78)","v":""}]
[null,"F2 IMPIANTI MECCANICI (RISCALDAMENTO, RAFFRESCAMENTO, CLIMATIZZAZIONE E IDRICO SANITARIO)",null,{"$f":"'ANALISI GENERALE'!G80","v":""},{"$f":"'ANALISI GENERALE'!K80","v":""},{"$f":"'ANALISI GENERALE'!D80","v":0},{"$f":"'ANALISI GENERALE'!E80","v":0},{"$f":"'ANALISI GENERALE'!F80","v":0},{"$f":"'ANALISI GENERALE'!H80","v":0},{"$f":"'ANALISI GENERALE'!I80","v":0},{"$f":"'ANALISI GENERALE'!J80","v":0},"NO",10,{"$f":"IF('ANALISI GENERALE'!R80=\"\",\"\",'ANALISI GENERALE'!R80)","v":""},null,null,{"$f":"IF('ANALISI GENERALE'!S80=\"\",\"\",'ANALISI GENERALE'!S80)","v":""}]
[null,"F3 IMPIANTI DI EMERGENZA",null,{"$f":"'ANALISI GENERALE'!G84","v":""},null,{"$f":"'ANALISI GENERALE'!D84","v":0},{"$f":"'ANALISI GENERALE'!E84","v":0},{"$f":"'ANALISI GENERALE'!F84","v":0},null,null,null,{"$f":"IF(G28>0,\"SI\",\"NO\")","v":"NO"},11,{"$f":"IF('ANALISI GENERALE'!R84=\"\",\"\",'ANALISI GENERALE'!R84)","v":""}]
[null,"F4 ALTRI IMPIANTI",null,null,{"$f":"'ANALISI GENERALE'!K86","v":""},null,null,null,{"$f":"'ANALISI GENERALE'!H86","v":0},{"$f":"'ANALISI GENERALE'!I86","v":0},{"$f":"'ANALISI GENERALE'!J86","v":0},"NO",12,null,null,null,{"$f":"IF('ANALISI GENERALE'!S86=\"\",\"\",'ANALISI GENERALE'!S86)","v":""}]
[2,"ANALISI REQUISITI ANTINCENDIO",null,{"$f":"IF(L11=\"\",\"-\",RIFC.1)","v":"-"},{"$f":"IF(L11=\"\",\"-\",'ANALISI REQUISITI ANTINCENDIO'!RIFPC.1)","v":"-"}]
[null,"C REQUISITI ANTINCENDIO",null,{"$f":"IF(L11=\"\",\"-\",INDIRECT(\"RIFCC.1\"))","v":"-"},null,{"$f":"'ANALISI REQUISITI ANTINCENDIO'!CC","v":0},{"$f":"'ANALISI REQUISITI ANTINCENDIO'!NC_","v":0},{"$f":"'ANALISI REQUISITI ANTINCENDIO'!CAD","v":0},{"$f":"'ANALISI REQUISITI ANTINCENDIO'!CPC","v":0},{"$f":"'ANALISI REQUISITI ANTINCENDIO'!CPAC","v":0},null,{"$f":"IF(G31>0,\"SI\",\"NO\")","v":"NO"},1,{"$f":"IF('ANALISI REQUISITI ANTINCENDIO'!Q14=\"\",\"\",'ANALISI REQUISITI ANTINCENDIO'!Q14)","v":""},null,null,{"$f":"IF('ANALISI REQUISITI ANTINCENDIO'!R14=\"\",\"\",'ANALISI REQUISITI ANTINCENDIO'!R14)","v":""}]
[3,"ANALISI DOTAZIONI INTERNE",null,{"$f":"RIFC.2","v":"-"},{"$f":"'ANALISI DOTAZIONI INTERNE'!I64","v":"-"}]
[null,"D4 ERGONOMIA DEGLI SPAZI E DELLE POSTAZIONI ",null,{"$f":"RIFD4C.2","v":""},{"$f":"RIFD4PC.2","v":""},{"$f":"'ANALISI DOTAZIONI INTERNE'!CD4_","v":0},{"$f":"'ANALISI DOTAZIONI INTERNE'!NCD4_","v":0},{"$f":"'ANALISI DOTAZIONI INTERNE'!CADD4","v":0},{"$f":"'ANALISI DOTAZIONI INTERNE'!CPD4_","v":0},{"$f":"'ANALISI DOTAZIONI INTERNE'!CPAD4_","v":0},{"$f":"'ANALISI DOTAZIONI INTERNE'!J16","v":0},{"$f":"IF(G33>0,\"SI\",\"NO\")","v":"NO"},1,{"$f":"IF('ANALISI DOTAZIONI INTERNE'!R16=\"\",\"\",'ANALISI DOTAZIONI INTERNE'!R16)","v":""},null,null,{"$f":"IF('ANALISI DOTAZIONI INTERNE'!S16=\"\",\"\",'ANALISI DOTAZIONI INTERNE'!S16)","v":""}]
[null,"D5 COMFORT (ES RUMORE, RADIAZIONI, MICROCLIMA) ",null,{"$f":"RIFD5C.2","v":""},{"$f":"RIFD5PC.2","v":""},{"$f":"'ANALISI DOTAZIONI INTERNE'!CD5_","v":0},{"$f":"'ANALISI DOTAZIONI INTERNE'!NCD5_","v":0},{"$f":"'ANALISI DOTAZIONI INTERNE'!CADD5","v":0},{"$f":"'ANALISI DOTAZIONI INTERNE'!CPD5_","v":0},{"$f":"'ANALISI DOTAZIONI INTERNE'!CPAD5_","v":0},{"$f":"'ANALISI DOTAZIONI INTERNE'!J32","v":0},{"$f":"IF(G34>0,\"SI\",\"NO\")","v":"NO"},2,{"$f":"IF('ANALISI DOTAZIONI INTERNE'!R32=\"\",\"\",'ANALISI DOTAZIONI INTERNE'!R32)","v":""},null,null,{"$f":"IF('ANALISI DOTAZIONI INTERNE'!S32=\"\",\"\",'ANALISI DOTAZIONI INTERNE'!S32)","v":""}]
[null,"D7 ALLESTIMENTI E FINITURE  ",null,null,{"$f":"RIFD7PC.2","v":""},null,null,null,{"$f":"'ANALISI DOTAZIONI INTERNE'!CPD7_","v":0},{"$f":"'ANALISI DOTAZIONI INTERNE'!CPAD7_","v":0},{"$f":"'ANALISI DOTAZIONI INTERNE'!J43","v":0},null,3,null,null,null,{"$f":"IF('ANALISI DOTAZIONI INTERNE'!S43=\"\",\"\",'ANALISI DOTAZIONI INTERNE'!S43)","v":""}]
[null,"F1 IMPIANTO ELETTRICO",null,null,{"$f":"'ANALISI DOTAZIONI INTERNE'!K54","v":""},null,null,null,{"$f":"'ANALISI DOTAZIONI INTERNE'!H54","v":0},{"$f":"'ANALISI DOTAZIONI INTERNE'!I54","v":0},{"$f":"'ANALISI DOTAZIONI INTERNE'!J54","v":0},{"$f":"IF(G36>0,\"SI\",\"NO\")","v":"NO"},4,null,null,null,{"$f":"IF('ANALISI DOTAZIONI INTERNE'!S54=\"\",\"\",'ANALISI DOTAZIONI INTERNE'!S54)","v":""}]
[4,"ORGANIZZAZIONE",null,{"$f":"ORGANIZZAZIONE!RIFC.2","v":10},null,{"$f":"ORGANIZZAZIONE!CD4_","v":0},{"$f":"ORGANIZZAZIONE!NCD4_","v":0},{"$f":"ORGANIZZAZIONE!CADD4","v":0},null,null,null,"NO",1,{"$f":"IF(ORGANIZZAZIONE!R16<>\"\",ORGANIZZAZIONE!R16,\"\")","v":""}]
[]
[]
[]
["INDICE DI EFFICIENZA COGENZE",null,{"$f":"IFERROR(SUM(D17,D30,D32,0.2*D37)/(30+0.2*D37)*10,\"\")","v":0.625},null,null,null,"INDICE DI EFFICIENZA PREFERENZE",null,null,{"$f":"AVERAGEA(E17,E30,E32)","v":0},null,{"$f":"IF(J41>0,IF(J41<=4,\"DA MIGLIORARE\",IF(AND(J41>4,J41<6.5),\"BASE\",IF(AND(J41>=6.5,J41<8.5),\"BUONO\",IF(J41>=8.5,\"OTTIMO\",\"\")))),\"\")","v":""}]
[]
["VALUTAZIONE"]
[]
["ESITO DEL SOPRALLUOGO",null,"NON IDONEO","IDONEO CON ADEGUAMENTI",null,"IDONEO"]
[]
[null,null,{"$f":"IF(AND(COUNTIFS(NCMG1,\"=X\",NCMG2,\"=X\",NCMG3,\"=X\",NCMG4,\"=X\",NCMG5,\"=X\",NCMG6,\"=X\")=0,SUM(COUNTIFS(NCMIN1,\"=X\"),COUNTIFS(NCMIN2,\"=X\"),COUNTIFS(NCMIN3,\"=X\"),COUNTIFS(NCMIN4,\"=X\"),COUNTIFS(NCMIN5,\"=X\"))<4),IF(AND(C41<8,C41>0,COUNTIFS(G16:G37,\">0\")>0),\"X\",\"\"),\"X\")","v":""},{"$f":"IF(AND(COUNTIFS(NCMG1,\"=X\",NCMG2,\"=X\",NCMG3,\"=X\",NCMG4,\"=X\",NCMG5,\"=X\",NCMG6,\"=X\")=0,SUM(COUNTIFS(NCMIN1,\"=X\"),COUNTIFS(NCMIN2,\"=X\"),COUNTIFS(NCMIN3,\"=X\"),COUNTIFS(NCMIN4,\"=X\"),COUNTIFS(NCMIN5,\"=X\"))<4),IF(AND(C41>=8,C41<10,C41>0,COUNTIFS(G16:G37,\">0\")>0),\"X\",\"\"),\"\")","v":""},null,{"$f":"IF(AND(C41=10,C41<>\"-\"),\"X\",\"\")","v":""}]
[]
[]
[null,null,{"$f":"NCMG3","v":""}]

{"sheet":"ANALISI GENERALE","index":2,"n_rows":99,"n_cols":21,"rows_kept":99,"cut":false,"hidden":false,"merged":[[64,11,64,13],[64,14,64,16],[77,11,77,13],[86,11,86,13],[86,14,86,16],[87,11,87,13],[87,14,87,16],[79,11,79,13],[79,14,79,16],[85,11,85,13],[85,14,85,16],[65,11,65,13],[65,14,65,16],[66,11,66,13],[66,14,66,16],[67,11,67,13],[67,14,67,16],[80,11,80,13],[78,11,78,13],[78,14,78,16],[81,11,81,13],[81,14,81,16],[73,11,73,13],[74,11,74,13],[60,11,60,13],[61,11,61,13],[62,11,62,13],[63,11,63,13],[60,14,60,16],[61,14,61,16],[62,14,62,16],[63,14,63,16],[12,11,13,16],[45,11,45,13],[45,14,45,16],[54,11,54,13],[55,11,55,13],[42,11,42,13],[42,14,42,16],[43,11,43,13],[43,14,43,16],[44,11,44,13],[44,14,44,16],[49,11,49,13],[47,14,47,16],[48,14,48,16],[49,14,49,16],[50,11,50,13],[50,14,50,16],[51,11,51,13],[52,11,52,13],[51,14,51,16],[52,14,52,16],[53,11,53,13],[53,14,53,16],[55,14,55,16],[54,14,54,16],[38,14,38,16],[39,14,39,16],[40,14,40,16],[41,14,41,16],[37,11,37,13],[38,11,38,13],[39,11,39,13],[40,11,40,13],[41,11,41,13],[35,11,35,13],[35,14,35,16],[36,11,36,13],[36,14,36,16],[37,14,37,16],[30,14,30,16],[31,14,31,16],[32,14,32,16],[34,14,34,16],[30,11,30,13],[31,11,31,13],[32,11,32,13],[33,14,33,16],[34,11,34,13],[33,11,33,13],[26,11,26,13],[27,11,27,13],[28,11,28,13],[29,11,29,13],[27,14,27,16],[28,14,28,16],[29,14,29,16],[26,14,26,16],[12,3,12,10],[14,11,14,13],[15,11,15,13],[14,14,14,16],[16,11,16,13],[17,11,17,13],[19,11,19,13],[20,11,20,13],[13,3,13,6],[13,7,13,10],[25,11,25,13],[25,14,25,16],[18,11,18,13],[18,14,18,16],[10,1,10,2],[7,12,7,13],[7,1,7,2],[8,1,8,2],[7,3,7,5],[7,6,7,11],[9,1,9,2],[10,12,10,13],[8,3,8,5],[8,12,8,13],[9,3,9,5],[10,3,10,5],[8,6,8,11],[9,12,9,15],[9,6,9,11],[10,6,10,11],[5,13,5,16],[7,14,7,16],[8,14,8,16],[21,11,21,13],[22,11,22,13],[23,11,23,13],[24,11,24,13],[16,14,16,16],[17,14,17,16],[19,14,19,16],[20,14,20,16],[21,14,21,16],[22,14,22,16],[23,14,23,16],[24,14,24,16],[15,14,15,16],[88,11,88,13],[88,14,88,16],[46,11,46,13],[46,14,46,16],[47,11,47,13],[48,11,48,13],[98,3,98,4],[89,1,89,2],[92,0,92,16],[94,0,94,1],[96,0,98,1],[96,2,97,2],[96,3,97,4],[96,5,97,5],[94,4,94,7],[56,11,56,13],[57,11,57,13],[58,11,58,13],[59,11,59,13],[56,14,56,16],[57,14,57,16],[58,14,58,16],[59,14,59,16],[77,14,77,16],[83,11,83,13],[83,14,83,16],[84,11,84,13],[84,14,84,16],[68,11,68,13],[68,14,68,16],[69,11,69,13],[70,11,70,13],[71,11,71,13],[72,11,72,13],[69,14,69,16],[70,14,70,16],[71,14,71,16],[72,14,72,16],[75,11,75,13],[76,11,76,13],[73,14,73,16],[74,14,74,16],[75,14,75,16],[76,14,76,16],[82,11,82,13],[82,14,82,16],[80,14,80,16]]}
[]
["Analisi conformità spazio da adibire a COWORKING"]
[]
[null,null,null,null,null,null,null,null,null,null,null,null,null,null,null,"Codice del documento:"]
["CHECK LIST DI VERIFICA SPAZIO COWORKING (ANALISI GENERALE)",null,null,null,null,null,null,null,null,null,null,null,null,null,null,{"$f":"SINTESI!P5","v":"M01"}]
["Rif. D.Lgs. 81/2008 - Allegato IV - Regolamenti edilizi e di igiene"]
[]
["CITTA'",{"$f":"SINTESI!B8","v":"--"},null,"A1 INQUADRAMENTO LOGISTICO TERRITORIALE",null,null,{"$f":"SINTESI!G8","v":0},null,null,null,null,null,"REFERENTE",null,{"$f":"SINTESI!L8","v":"--"}]
["VIA",{"$f":"SINTESI!B9","v":"--"},null,"A2 TIPOLOGIA DI EDIFICIO \nAnno instaurazione destinazione ufficio",null,null,{"$f":"SINTESI!G9","v":0},null,null,null,null,null,"CONTATTO",null,{"$f":"SINTESI!P8","v":"--"}]
["CIVICO",{"$f":"SINTESI!B10","v":"--"},null,"B1 DIMENSIONI DELLE SEDI \nAffollamento del piano coworking (n° persone)",null,null,{"$f":"SINTESI!G10","v":0},null,null,null,null,null,"AFFOLLAMENTO POTENZIALE ALTRI PIANI",null,null,null,{"$f":"SINTESI!M10","v":0}]
["PIANO",{"$f":"SINTESI!B11","v":"--"},null,"B2 CLASSIFICAZIONE DEGLI SPAZI",null,null,{"$f":"SINTESI!G11","v":0},null,null,null,null,null,"CATEGORIA UFFICI",null,{"$f":"SINTESI!L11","v":""},"DATA",{"$f":"SINTESI!R8","v":"--"}]
[]
[null,null,null,"VALUTAZIONE",null,null,null,null,null,null,null,"NOTE"]
[null,null,null,"CARATTERISTICHE COGENTI",null,null,null,"CARATTERISTICHE PREFERENZIALI"]
["CODICE DEL RISCONTRO","DESCRIZIONE DEL RISCONTRO","TIPO RISCONTRO","C ","NC","NA","PUNTEGGIO COGENZE","PRESENTE","ASSENTE","NA","PUNTEGGIO PREFERENZE ","AZIONI CORRETTIVE DA ATTIVARE",null,null,"AZIONI DI MIGLIORAMENTO DA ATTIVARE",null,null,"RIEPILOGO PUNTI AC","RIEPILOGO PUNTI AM"]
["P1",{"$f":"CONCATENATE(\"PREREQUISITI\",IF(SUM(D16:F16)<>COUNTA(B17:B26)-1,\" DA COMPLETARE\",IF(OR(E16<>0,L26<>\"\"),\" SPAZIO CW NON CONFORME\",\"\")))","v":"PREREQUISITI DA COMPLETARE"},"© / ℗",{"$f":"COUNTIF(D17:D26,\"X\")","v":0},{"$f":"COUNTIF(E17:E26,\"X\")-COUNTIF(E18,\"x\")","v":0},{"$f":"COUNTIF(F17:F26,\"X\")-COUNTIF(F19,\"x\")","v":0},{"$f":"IFERROR(IF(COUNTA(D17:F26)=0,\"\",(COUNTA(B17:B26)-COUNTA(F17:F26)-SUM(G17:G26))/(COUNTA(B17:B26)-COUNTA(F17:F26))*10),\"\")","v":10},null,null,null,null,{"$f":"IF(COUNTIFS(E17:E26,\"=x\")<>0,\"//\",\"\")","v":""},null,null,null,null,null,{"$f":"CONCATENATE(IF(R17<>\"\",R17&CHAR(44)&CHAR(32),\"\"),IF(R18<>\"\",R18&CHAR(44)&CHAR(32),\"\"),IF(R20<>\"\",R20&CHAR(44)&CHAR(32),\"\"),IF(R21<>\"\",R21&CHAR(44)&CHAR(32),\"\"),IF(R22<>\"\",R22&CHAR(44)&CHAR(32),\"\"),IF(R23<>\"\",R23&CHAR(44)&CHAR(32),\"\"),IF(R24<>\"\",R24&CHAR(44)&CHAR(32),\"\"),IF(R25<>\"\",R25&CHAR(44)&CHAR(32),\"\"),IF(R26<>\"\",R26&CHAR(44)&CHAR(32),\"\"))","v":""}]
["P1.01","AGIBILITÀ E DESTINAZIONE D’USO “COMMERCIALE-UFFICIO” ","©",null,null,null,{"$f":"IFERROR(IF(E17=\"X\",1,\"\"),\"\")","v":""},null,null,null,null,{"$f":"IF(E17=\"X\", \"Requisito essenziale per poter destinare lo spazio a coworking e procedere con la valutazione\",\"\")","v":""},null,null,null,null,null,{"$f":"IF(E17<>\"\",A17,\"\")","v":""}]
["P1.02","ASSENZA DI BARRIERE ARCHITETTONICHE* E PRESENZA DI SPAZI E SERVIZI IDONEI AD ESSERE UTILIZZATI DA UTENTI DIVERSAMENTE ABILI","©",null,null,null,null,null,null,null,null,{"$f":"IF(E18=\"X\", \"Valutare se, attraverso interventi di natura tecnica, impiantistica e/o organizzativa, sono superabili le barrirere architettoniche  (install. servoscala, rampe, adeguamento bagni e/o individuazione di altri spazi dell'Amministrazione. Vedere P1.02 BIS)\",\"\")","v":""},null,null,null,null,null,{"$f":"IF(E18<>\"\",A18,\"\")","v":""}]
["P1.02 BIS","E' POSSIBILE, ATTRAVERSO INTERVENTI DI NATURA TECNICA, IMPIANTISTICA E/O ORGANIZZATIVA, INTERVENIRE PER IL SUPERAMENTO DELLE BARRIERE ARCHITETTONICHE PRESENTI.","©",null,null,{"$f":"IF(E18<>\"X\",\"X\",\"\")","v":"X"},"",null,null,null,null,{"$f":"IF(D19=\"X\",\"Attivare interventi di adeguamento e superamento delle barriere architettoniche presenti\",IF(E19=\"X\", \"Requisito essenziale per poter destinare lo spazio a coworking e procedere con la valutazione\",\"\"))","v":""},null,null,null,null,null,""]
["P1.03","SOLIDITÀ. LA STRUTTURA, INTERNA ED ESTERNA, NON DEVE PRESENTARE EVIDENTI CARENZE QUALI CREPE, DISSESTI, DISTACCHI, DANNI DA INTEMPERIE O EVENTI SISMICI.","©",null,null,null,"",null,null,null,null,{"$f":"IF(E20=\"X\", \"Requisito essenziale per poter destinare lo spazio a coworking e procedere con la valutazione\",\"\")","v":""},null,null,null,null,null,""]
["P1.04","IMPIANTI INTEGRI. GLI IMPIANTI ELETTRICI E MECCANICI NON DOVRANNO PRESENTARE EVIDENTI DANNI O PALESI MALFUNZIONAMENTI TALI DI COMPROMETTERNE LA FUNZIONALITÀ E LA SICUREZZA QUALI CAVI SCOPERTI, PRESE STACCATE, TUBI ROTTI O DANNEGGIATI.","©",null,null,null,"",null,null,null,null,"",null,null,null,null,null,""]
["P1.05","GLI AMBIENTI DEVONO ESSERE LIBERI DA AMIANTO (IN MATRICE COMPATTA O FRIABILE, PUÒ ESSERE PRESENTE SULLE COPERTURE, NEI RIVESTIMENTI E NELLE COIBENTAZIONI) E LIBERI DA LANA DI VETRO O DI ROCCIA.","©",null,null,null,"",null,null,null,null,"",null,null,null,null,null,""]
["P1.06","AMBIENTI SALUBRI. GLI AMBIENTI NON DEVONO PRESENTARE MUFFE, UMIDITÀ, INFILTRAZIONI D’ACQUA, ESALAZIONI, PRESENZA DI INFESTANTI.","©",null,null,null,"",null,null,null,null,"",null,null,null,null,null,""]
["P1.07","COPERTURA WI-FI. GLI AMBIENTI DEVONO COPERTI DA CONNESSIONE INTERNET VELOCE WI-FI.","©",null,null,null,"",null,null,null,null,"",null,null,null,null,null,""]
["P1.08","PRESENZA DI GUARDIANIA O PRESIDIO.  PERSONALE IN GRADO DI GESTIRE EVENTUALI EMERGENZE DEVE ESSERE PRESENTE IN LOCO O COMUNQUE ENTRO UN TEMPO NON SUPERIORE AI 15 MINUTI. **** PER IL DETTAGLIO SI VEDA PAR. G","©",null,null,null,"",null,null,null,null,"",null,null,null,null,null,""]
["P1.09","SE PRESENTE CERTIFICATO DI PREVENZIONE INCENDI COMPRENDENTE I LOCALI DA DESTINARE A COWORKING, ESSI  DOVRANNO ESSERE CONFORMI A QUANTO AUTORIZZATO NEL CPI","©",null,null,null,"",null,null,null,null,{"$f":"IF(E26=\"X\", \"Requisito essenziale per poter destinare lo spazio a coworking e procedere con la valutazione\",IF(AND(CLAUF=\"C.3\",F26=\"X\"),\"ATTENZIONE SELEZIONE ERRATA IN QUANTO È NECSSARIO IL CPI SELEZIONARE NC\",\"\"))","v":""},null,null,null,null,null,""]
["A2.1",{"$f":"CONCATENATE(\"INQUADRAMENTO LOGISTICO TERRITORIALE\",IF(COUNTA(H28:J35)<>COUNTA(B28:B35),CHAR(10)&\"DA COMPLETARE\",))","v":"INQUADRAMENTO LOGISTICO TERRITORIALE\nDA COMPLETARE"},"© / ℗",null,null,null,null,{"$f":"SUMIFS(K28:K35,H28:H35,\"X\")","v":0},{"$f":"SUMIFS(K28:K35,I28:I35,\"X\")","v":0},{"$f":"COUNTIF(J28:J35,\"X\")","v":0},{"$f":"IFERROR(IF(COUNTA(H28:J35)=0,\"\",H27/(H27+I27)*10),\"\")","v":""},null,null,null,{"$f":"IF(COUNTIFS(I28:I35,\"=x\")<>0,\"//\",\"\")","v":""},null,null,null,{"$f":"CONCATENATE(IF(S28<>\"\",S28&CHAR(44)&CHAR(32),\"\"),IF(S29<>\"\",S29&CHAR(44)&CHAR(32),\"\"),IF(S30<>\"\",S30&CHAR(44)&CHAR(32),\"\"),IF(S31<>\"\",S31&CHAR(44)&CHAR(32),\"\"),IF(S32<>\"\",S32&CHAR(44)&CHAR(32),\"\"),IF(S33<>\"\",S33&CHAR(44)&CHAR(32),\"\"),IF(S34<>\"\",S34&CHAR(44)&CHAR(32),\"\"),IF(S35<>\"\",S35&CHAR(44)&CHAR(32),\"\"))","v":""},null,{"$f":"IF(COUNTA(L28:N35)<>0,\"//\",\"\")","v":""}]
["A2.1.01","VICINANZA A PARCHEGGI PUBBLICI PER L’UTENZA E PER I DIPENDENTI, COMPRESI PARCHEGGI PER UTENTI CON DISABILITÀ MOTORIE","℗",null,null,null,{"$f":"IFERROR(IF(OR(E28=\"X\",F28=\"X\"),1,\"\"),\"\")","v":""},null,null,null,2,null,null,null,{"$f":"IF(I28=\"X\", \"Preferire locali con aree limitrofe dedicate a parcheggi per l'utenza e per i lavoratori\",\"\")","v":""},null,null,null,{"$f":"IF(I28<>\"\",A28,\"\")","v":""}]
["A2.1.02","PRESENZA DI MARCIAPIEDI E/O PISTE CICLO-PEDONALI","℗",null,null,null,null,null,null,null,1,null,null,null,{"$f":"IF(I29=\"X\", \"Preferire locali serviti da marciapiedi e piste ciclopedonali\",\"\")","v":""},null,null,null,{"$f":"IF(I29<>\"\",A29,\"\")","v":""}]
["A2.1.03","VICINANZA A FERMATE DEI MEZZI PUBBLICI E STRADE DI GRANDE COMUNICAZIONE","℗",null,null,null,null,null,null,null,2,null,null,null,{"$f":"IF(I30=\"X\", \"Preferire locali serviti da mezzi pubblici e strade di grande comunicazione\",\"\")","v":""},null,null,null,""]
["A2.1.04","VICINANZA AD AEROPORTI, STAZIONI FERROVIARIE E SVINCOLI AUTOSTRADALI","℗",null,null,null,null,null,null,null,2,null,null,null,{"$f":"IF(I31=\"X\", \"Preferire locali vicini ad areoporti, stazioni ferroviarie e svincoli autostradali\",\"\")","v":""},null,null,null,""]
["A2.1.05","VICINANZA A SERVIZI COME BANCA, UFFICIO POSTALE, BAR, RISTORANTI, ALBERGHI, SERVIZIO CATERING, ECC. ","℗",null,null,null,null,null,null,null,1,null,null,null,{"$f":"IF(I32=\"X\", \"Preferire locali vicini a banche, uffici postali, bar, ristoranti, alberghi e/o servizio cattering\",\"\")","v":""},null,null,null,""]
["A2.1.06","INDIPENDENZA DEL FABBRICATO ","℗",null,null,null,null,null,null,null,3,null,null,null,{"$f":"IF(I33=\"X\", \"Preferire locali inseriti all'interno di un fabbricato indipendente\",\"\")","v":""},null,null,null,""]
["A2.1.07","PRESENZA DI ASCENSORE O, IN ASSENZA, PIANO TERRA","℗",null,null,null,null,null,null,null,3,null,null,null,{"$f":"IF(I34=\"X\", \"Preferire locali serviti da ascensore\",\"\")","v":""},null,null,null,""]
["A2.1.08","SVILUPPO IN ORIZZONTALE DEGLI UFFICI","℗",null,null,null,null,null,null,null,2,null,null,null,{"$f":"IF(I35=\"X\", \"Preferire locali con sviluppo orizzontale (su un solo piano)\",\"\")","v":""},null,null,null,""]
["A3",{"$f":"CONCATENATE(\"ANALISI DOCUMENTALE\",IF(COUNTA(D37:F42)<>COUNTA(B37:B42),\" DA COMPLETARE\",IF(E36<>0,\" SPAZIO CW NON CONFORME\",\"\")))","v":"ANALISI DOCUMENTALE DA COMPLETARE"},"© / ℗",{"$f":"COUNTIF(D37:D42,\"X\")","v":0},{"$f":"COUNTIF(E37:E42,\"X\")","v":0},{"$f":"COUNTIF(F37:F42,\"X\")","v":0},{"$f":"IFERROR(IF(COUNTA(D37:F42)=0,\"\",(COUNTA(B37:B42)-COUNTA(F37:F42)-SUM(G37:G42))/(COUNTA(B37:B42)-COUNTA(F37:F42))*10),\"\")","v":""},null,null,null,null,{"$f":"IF(COUNTIFS(E37:E42,\"=x\")<>0,\"//\",\"\")","v":""},null,null,null,null,null,{"$f":"CONCATENATE(IF(R37<>\"\",R37&CHAR(44)&CHAR(32),\"\"),IF(R38<>\"\",R38&CHAR(44)&CHAR(32),\"\"),IF(R39<>\"\",R39&CHAR(44)&CHAR(32),\"\"),IF(R40<>\"\",R40&CHAR(44)&CHAR(32),\"\"),IF(R41<>\"\",R41&CHAR(44)&CHAR(32),\"\"),IF(R42<>\"\",R42&CHAR(44)&CHAR(32),\"\"))","v":""}]
["A3.1","PRESENZA DI DICHIARAZIONE DI CONFORMITÀ DELL’IMPIANTO ELETTRICO ","©",null,null,null,{"$f":"IFERROR(IF(E37=\"X\",1,\"\"),\"\")","v":""},null,null,null,null,{"$f":"IF(E37=\"X\", \"Verificare presenza della dichiarazione di conformità impianto elettrico\",\"\")","v":""},null,null,null,null,null,{"$f":"IF(E37<>\"\",A37,\"\")","v":""}]
["A3.2","PRESENZA DENUNCIA DELL’IMPIANTO DI MESSA A TERRA, DICHIARAZIONE DI CONFORMITÀ E VERIFICHE PERIODICHE","©",null,null,null,"",null,null,null,null,{"$f":"IF(E38=\"X\", \"Verificare presenza della denuncia impianto di messa a terra e dichiarazione di conformità e controlli periodici\",\"\")","v":""},null,null,null,null,null,{"$f":"IF(E38<>\"\",A38,\"\")","v":""}]
["A3.3","PRESENZA DELLA RELAZIONE/CALCOLO DI AUTOPROTEZIONE DELL’EDIFICIO OPPURE DICHIARAZIONE DI CONFORMITÀ DELL’IMPIANTO DI PROTEZIONE CONTRO LE SCARICHE ATMOSFERICHE ","©",null,null,null,"",null,null,null,null,{"$f":"IF(E39=\"X\", \"Verificare presenza della dichiarazione di conformità impianto di protezione scariche atmosferiche o presenza della relazione di calcolo di autoprotezione\",\"\")","v":""},null,null,null,null,null,""]
["A3.4","PRESENZA DI DENUNCIA E DICHIARAZIONE DI CONFORMITÀ DELL’IMPIANTO TERMO-IDRO-SANITARIO, DISPONIBILITÀ DEI LIBRETTI ","©",null,null,null,"",null,null,null,null,{"$f":"IF(E40=\"X\", \"Verificare presenza della denuncia e dichiarazione di conformità impianti idro-termo-sanitario\",\"\")","v":""},null,null,null,null,null,""]
["A3.5","PRESENZA DI DICHIARAZIONE DI CONFORMITÀ DELL’ASCENSORE (OVE PRESENTE) E VERIFICHE BIENNALI IN CORSO DI VALIDITÀ","©",null,null,null,"",null,null,null,null,{"$f":"IF(E41=\"X\", \"Verifica presenza della dichiarazione di conformità ascensore e/o verifiche periodiche biennali\",\"\")","v":""},null,null,null,null,null,""]
["A3.6","PRESENZA DI DICHIARAZIONE DI CONFORMITÀ DI EVENTUALI ALTRI IMPIANTI INSTALLATI NEI LOCALI (IMPIANTO UTA, IMPIANTO FRIGO, CLIMATIZZAZIONE, RILEVAZIONE FUMI, ALLARME, RILEVAZIONE INCENDI, ANTINTRUSIONE, ECC) E VERIFICHE NECESSARIE","©",null,null,null,"",null,null,null,null,{"$f":"IF(E42=\"X\", \"Verifica presenza della dichiarazione di conformità altri impianti (allarme, incendio, UTA, frigo, ecc)\",\"\")","v":""},null,null,null,null,null,""]
["B2.1",{"$f":"CONCATENATE(\"CLASSIFICAZIONE DEGLI SPAZI: FUNZIONALITÀ\",IF(COUNTA(H44:J46)<>COUNTA(B44:B46),CHAR(10)&\"DA COMPLETARE\",))","v":"CLASSIFICAZIONE DEGLI SPAZI: FUNZIONALITÀ\nDA COMPLETARE"},"© / ℗",null,null,null,null,{"$f":"SUMIFS(K44:K46,H44:H46,\"X\")","v":0},{"$f":"SUMIFS(K44:K46,I44:I46,\"X\")","v":0},{"$f":"COUNTIF(J44:J46,\"X\")","v":0},{"$f":"IFERROR(IF(COUNTA(H44:J46)=0,\"\",H43/(H43+I43)*10),\"\")","v":""},null,null,null,{"$f":"IF(COUNTIFS(I44:I46,\"=x\")<>0,\"//\",\"\")","v":""},null,null,null,{"$f":"CONCATENATE(IF(S44<>\"\",S44&CHAR(44)&CHAR(32),\"\"),IF(S45<>\"\",S45&CHAR(44)&CHAR(32),\"\"),IF(S46<>\"\",S46&CHAR(44)&CHAR(32),\"\"))","v":""}]
["B2.1.01","HUB (WELCOME AREA, TOUCHDOWN, INFORMAL AREA, QUIET ROOM, BREAK AREA E PHONE BOOTH)","℗",null,null,null,null,null,null,null,3,null,null,null,{"$f":"IF(I44=\"X\", \"Organizzare gli spazi in funzione della creazione HUB (welcome area, touchdown, informal area, quiet room, break area e phone booth)\",\"\")","v":""},null,null,null,{"$f":"IF(I44<>\"\",A44,\"\")","v":""}]
["B2.1.02","\nSUPPORTI (MEETING ROOM DI VARIE DIMENSIONI)","℗",null,null,null,null,null,null,null,1,null,null,null,{"$f":"IF(I45=\"X\", \"Organizzare gli spazi in funzione della creazione di aree da dedicare a meeting room\",\"\")","v":""},null,null,null,{"$f":"IF(I45<>\"\",A45,\"\")","v":""}]
["B2.1.03","\nACCESSORI (STAMPE / FOTOCOPIE, LOCKERS)\n","℗",null,null,null,null,null,null,null,2,null,null,null,{"$f":"IF(I46=\"X\", \"Dotare gli spazi di servizi accessori quali stampanti, fotocopie, lockers\",\"\")","v":""},null,null,null,""]
["D1",{"$f":"CONCATENATE(\"CARATTERISTICHE DIMENSIONALI\",IF(COUNTA(H50:J50,D48:F49)<>COUNTA(B48:B50),CHAR(10)&\"DA COMPLETARE\",IF(E47<>0,CHAR(10)&\"SPAZIO CW NON CONFORME\",\"\")))","v":"CARATTERISTICHE DIMENSIONALI\nDA COMPLETARE"},"© / ℗",{"$f":"COUNTIF(D48:D48,\"X\")","v":0},{"$f":"COUNTIF(E48:E48,\"X\")","v":0},{"$f":"COUNTIF(F48:F48,\"X\")","v":0},{"$f":"IF(COUNTA(D48:F49)=0,\"\",(COUNTA(B48:B49)-COUNTA(F48:F49)-SUM(G48:G49))/(COUNTA(B48:B49)-COUNTA(F48:F49))*10)","v":""},{"$f":"SUMIFS(K48:K50,H48:H50,\"X\")","v":0},{"$f":"SUMIFS(K48:K50,I48:I50,\"X\")","v":0},{"$f":"COUNTIF(J48:J50,\"X\")","v":0},{"$f":"IFERROR(IF(COUNTA(H48:J50)=0,\"\",H47/(H47+I47)*10),\"\")","v":""},{"$f":"IF(COUNTIFS(E48:E49,\"=x\")<>0,\"//\",\"\")","v":""},null,null,{"$f":"IF(COUNTIFS(I50,\"=x\")<>0,\"//\",\"\")","v":""},null,null,{"$f":"CONCATENATE(IF(R48<>\"\",R48&CHAR(44)&CHAR(32),\"\"),IF(R49<>\"\",R49&CHAR(44)&CHAR(32),\"\"))","v":""},{"$f":"IF(S50<>\"\",S50&CHAR(44)&CHAR(32),\"\")","v":""}]
["D1.01","PRESENZA DI SERVIZI IGIENICI A DISPOSIZIONE DEI LOCALI CON WC E LAVABI CON ACQUA CORRENTE CALDA DOTATI DI MEZZI DETERGENTI E PER ASCIUGARSI, SEPARATI PER UOMINI E DONNE (FINO A 10 LAVORATORI È CONCESSO SERVIZIO UNICO CON UTILIZZO SEPARATO);","©",null,null,null,{"$f":"IFERROR(IF(E48=\"X\",1,\"\"),\"\")","v":""},null,null,null,null,{"$f":"IF(E48=\"X\", \"Riorganizzare la distribuzione dei servizi igienici al fine di dotare gli spazi di servizi ad uso esclusivo e completi delle dotazioni necessarie (richiesto 1 wc ogni 10 lavoratori ed 1 lavabo ogni 5 lavoratori\",\"\")","v":""},null,null,null,null,null,{"$f":"IF(E48<>\"\",A48,\"\")","v":""}]
["D1.02","PRESENZA DI SERVIZI IGIENICI AD USO DI UTENTI DIVERSAMENTE ABILI CON WC E LAVABI CON ACQUA CORRENTE CALDA DOTATI DI MEZZI DETERGENTI E PER ASCIUGARSI.","©",null,null,null,"",null,null,null,null,{"$f":"IF(E49=\"X\", \"Prevedere, per gli spazi dedicati a coworking, la disponibilità di almeno 1 servizio riservato a lavoratori con disabilità\",\"\")","v":""},null,null,null,null,null,{"$f":"IF(E49<>\"\",A49,\"\")","v":""}]
["D1.03","AMBIENTE CON FORMA REGOLARE (RETTANGOLARE, QUADRATA O A CORTE) O AMBIENTE LINEARE (CON SVILUPPO LUNGO UNA LINEA ORIZZONTALE);","℗",null,null,null,null,null,null,null,1,null,null,null,{"$f":"IF(I50=\"X\", \"Preferire ambienti con forma regolare e/o con sviluppo lineare\",\"\")","v":""},null,null,null,{"$f":"IF(I50<>\"\",A50,\"\")","v":""}]
["D2",{"$f":"CONCATENATE(\"NUMERO DI LAVORATORI AMMESSI\",IF(COUNTA(H54:J54,D52:F53)<>COUNTA(B52:B54),CHAR(10)&\"DA COMPLETARE\",IF(E51<>0,CHAR(10)&\"SPAZIO CW NON CONFORME\",\"\")))","v":"NUMERO DI LAVORATORI AMMESSI\nDA COMPLETARE"},"© / ℗",{"$f":"COUNTIF(D52:D53,\"X\")","v":0},{"$f":"COUNTIF(E52:E53,\"X\")","v":0},{"$f":"COUNTIF(F52:F53,\"X\")","v":0},{"$f":"IF(COUNTA(D52:F53)=0,\"\",(COUNTA(B52:B53)-COUNTA(F52:F53)-SUM(G52:G53))/(COUNTA(B52:B53)-COUNTA(F52:F53))*10)","v":""},{"$f":"SUMIFS(K52:K54,H52:H54,\"X\")","v":0},{"$f":"SUMIFS(K52:K54,I52:I54,\"X\")","v":0},{"$f":"COUNTIF(J52:J54,\"X\")","v":0},{"$f":"IFERROR(IF(COUNTA(H52:J54)=0,\"\",H51/(H51+I51)*10),\"\")","v":""},{"$f":"IF(COUNTIFS(E52:E53,\"=x\")<>0,\"//\",\"\")","v":""},null,null,{"$f":"IF(COUNTIFS(I54,\"=x\")<>0,\"//\",\"\")","v":""},null,null,{"$f":"CONCATENATE(IF(R52<>\"\",R52&CHAR(44)&CHAR(32),\"\"),IF(R53<>\"\",R53&CHAR(44)&CHAR(32),\"\"))","v":""},{"$f":"IF(S54<>\"\",S54&CHAR(44)&CHAR(32),\"\")","v":""}]
["D2.01","GLI UFFICI CHIUSI CON UNA POSTAZIONE AL VIDEOTERMINALE, HANNO UNA SUPERFICIE MINIMA DI ALMENO 10 MQ;","©",null,null,null,{"$f":"IFERROR(IF(E52=\"X\",1,\"\"),\"\")","v":""},null,null,null,null,{"$f":"IF(E52=\"X\", \"Riorganizzare gli uffici chiusi riservati ad una persona in modo da garantire dimensioni minime di almeno 10 mq\",\"\")","v":""},null,null,null,null,null,{"$f":"IF(E52<>\"\",A52,\"\")","v":""}]
["D2.02","GLI UFFICI PER PIÙ PERSONE E/O GLI OPEN SPACE, PRESENTANO UN MINIMO DI 10 MQ E 6 MQ PER OGNI ALTRA PERSONA;","©",null,null,null,"",null,null,null,null,{"$f":"IF(E53=\"X\", \"Rimodulare lo spazio e il numero di lavoratori previsti prevdendo, per gli open space, un minimo di 10 mq per ambiente e di 6 mq per ogni addetto \",\"\")","v":""},null,null,null,null,null,{"$f":"IF(E53<>\"\",A53,\"\")","v":""}]
["D2.03","DIMENSIONE, PER UFFICIO SINGOLO, DI ALMENO 14-18 MQ (VELA); ","℗",null,null,null,null,null,null,null,1,null,null,null,{"$f":"IF(I54=\"X\", \"Predisporre spazi adibiti ad ufficio singolo aventi dimensioni di almeno 14-18 mq\",\"\")","v":""},null,null,null,{"$f":"IF(I54<>\"\",A54,\"\")","v":""}]
["D3",{"$f":"CONCATENATE(\"DOTAZIONI E SPAZI ACCESSORI\",IF(COUNTA(H61:J64,D56:F60)<>COUNTA(B56:B64),CHAR(10)&\"DA COMPLETARE\",IF(E55<>0,CHAR(10)&\"SPAZIO CW NON CONFORME\",\"\")))","v":"DOTAZIONI E SPAZI ACCESSORI\nDA COMPLETARE"},"© / ℗",{"$f":"COUNTIF(D56:D60,\"X\")","v":0},{"$f":"COUNTIF(E56:E60,\"X\")","v":0},{"$f":"COUNTIF(F56:F60,\"X\")","v":0},{"$f":"IF(COUNTA(D56:F60)=0,\"\",(COUNTA(B56:B60)-COUNTA(F56:F60)-SUM(G56:G60))/(COUNTA(B56:B60)-COUNTA(F56:F60))*10)","v":""},{"$f":"SUMIFS(K61:K64,H61:H64,\"X\")","v":0},{"$f":"SUMIFS(K61:K64,I61:I64,\"X\")","v":0},{"$f":"COUNTIF(J61:J64,\"X\")","v":0},{"$f":"IFERROR(IF(COUNTA(H61:J64)=0,\"\",H55/(H55+I55)*10),\"\")","v":""},{"$f":"IF(COUNTIFS(E56:E60,\"=x\")<>0,\"//\",\"\")","v":""},null,null,{"$f":"IF(COUNTIFS(I61:I64,\"=x\")<>0,\"//\",\"\")","v":""},null,null,{"$f":"CONCATENATE(IF(R56<>\"\",R56&CHAR(44)&CHAR(32),\"\"),IF(R57<>\"\",R57&CHAR(44)&CHAR(32),\"\"),IF(R58<>\"\",R58&CHAR(44)&CHAR(32),\"\"),IF(R59<>\"\",R59&CHAR(44)&CHAR(32),\"\"),IF(R60<>\"\",R60&CHAR(44)&CHAR(32),\"\"))","v":""},{"$f":"CONCATENATE(IF(S61<>\"\",S61&CHAR(44)&CHAR(32),\"\"),IF(S62<>\"\",S62&CHAR(44)&CHAR(32),\"\"),IF(S63<>\"\",S63&CHAR(44)&CHAR(32),\"\"),IF(S64<>\"\",S64&CHAR(44)&CHAR(32),\"\"))","v":""}]
["D3.01","PRESENZA DI PAVIMENTI FISSI, STABILI, ANTISDRUCCIOLEVOLI, ESENTI DA PROTUBERANZE E CAVITÀ, LAVABILI E RESISTENTI ALL’USURA (NO MOQUETTE, NO LINOLEUM, ECC.);","©",null,null,null,{"$f":"IFERROR(IF(E56=\"X\",1,\"\"),\"\")","v":""},null,null,null,null,{"$f":"IF(E56=\"X\", \"Provvedere alla sostituzione, manutezione o rivestimento della pavimentazione esistente\",\"\")","v":""},null,null,null,null,null,{"$f":"IF(E56<>\"\",A56,\"\")","v":""}]
["D3.02","PRESENZA DI PARETI A TINTE CHIARE IN MATERIALI RESISTENTI ALL’USURA CHE CONSENTANO AGEVOLE MANUTENZIONE, DETERSIONE E PULIZIA;","©",null,null,null,{"$f":"IFERROR(IF(E57=\"X\",1,\"\"),\"\")","v":""},null,null,null,null,{"$f":"IF(E57=\"X\", \"Modificare le tinte delle pareti con colori a tonalità chiara che consentano agevole manutenzione e detersione\",\"\")","v":""},null,null,null,null,null,{"$f":"IF(E57<>\"\",A57,\"\")","v":""}]
["D3.03","PRESENZA DI PARETI TRASPARENTI SEGNALATE E REALIZZATE IN MATERIALE DI SICUREZZA","©",null,null,null,{"$f":"IFERROR(IF(E58=\"X\",1,\"\"),\"\")","v":""},null,null,null,null,{"$f":"IF(E58=\"X\", \"Segnalare le pareti trasparenti e garantire la loro sicurezza attraverso installazione di pellicole o sostituzione con vetri stratificati\",\"\")","v":""},null,null,null,null,null,""]
["D3.04","PRESENZA DI FINESTRE REALIZZATE CON VETRI DI SICUREZZA O DOTATE DI PELLICOLE PROTETTIVE E, SE APRIBILI, DOTATE DI PARAPETTO ALTO ALMENO 1 METRO","©",null,null,null,{"$f":"IFERROR(IF(E59=\"X\",1,\"\"),\"\")","v":""},null,null,null,null,{"$f":"IF(E59=\"X\", \"Installare vetri di sicurezza sulle finestre o pellicole protettive\",\"\")","v":""},null,null,null,null,null,""]
["D3.05","PRESENZA DI SCALE FISSE CON GRADINI REALIZZATI IN MATERIALE ANTISDRUCCIOLEVOLE E CON PARAPETTO SUL LATO APERTO; PRESENZA DI CORRIMANO, AD ALTEZZA 90-100 CM, NELLE RAMPE DELIMITATE DA DUE PARETI","©",null,null,null,{"$f":"IFERROR(IF(E60=\"X\",1,\"\"),\"\")","v":""},null,null,null,null,{"$f":"IF(E60=\"X\", \"Modificare le scale fisse garantendo la presenza di pedata e alzata costanti con parapetto di altezza almeno 100 cm o corrimano (per rampe delimitate da 2 pareti) di altezza compreso tra 90 e 100 cm\",\"\")","v":""},null,null,null,null,null,""]
["D3.06","PRESENZA DI CONTROSOFFITTATURA IN TUTTI I LOCALI (O PAVIMENTO SOPRAELEVATO) PER IL PASSAGGIO DEGLI IMPIANTI; ","℗",null,null,null,null,null,null,null,2,null,null,null,{"$f":"IF(I61=\"X\", \"Preferire ambienti con pavimenti sopraelevati o con presenza di controsoffitti per il passaggio degli impianti \",\"\")","v":""},null,null,null,{"$f":"IF(I61<>\"\",A61,\"\")","v":""}]
["D3.07","PRESENZA DI INFISSI INTERNI ED ESTERNI REALIZZATI IN MATERIALI DUREVOLI ED ESENTI DA MANUTENZIONE PERIODICA;","℗",null,null,null,null,null,null,null,2,null,null,null,{"$f":"IF(I62=\"X\", \"Preferire ambienti con infissi in PVC \",\"\")","v":""},null,null,null,{"$f":"IF(I62<>\"\",A62,\"\")","v":""}]
["D3.08","PRESENZA DI INFISSI ESTERNI REALIZZATI CON TECNOLOGIA CERTIFICATA ANTIEFFRAZIONE / VETRI ANTISCHEGGE E ANTISFONDAMENTO O PRESENZA DI INFERRIATE METALLICHE (FINO AL SECONDO PIANO);","℗",null,null,null,null,null,null,null,3,null,null,null,{"$f":"IF(I63=\"X\", \"Preferire ambienti con infissi esterni realizzati mediante tecnologie antieffrazione certificate\",\"\")","v":""},null,null,null,""]
["D3.09","PRESENZA DI PORTE DI ACCESSO, ALLE STANZE DESTINATE AD UFFICIO SINGOLO, DOTATE DI SERRATURA.","℗",null,null,null,null,null,null,null,1,null,null,null,{"$f":"IF(I64=\"X\", \"Dotare gli uffici singoli di serratura con chiave\",\"\")","v":""},null,null,null,""]
["D6",{"$f":"CONCATENATE(\"ACCESSIBILITÀ E BARRIERE ARCHITETTONICHE\",IF(COUNTA(H66:J68)<>COUNTA(B66:B68),CHAR(10)&\"DA COMPLETARE\",\"\"))","v":"ACCESSIBILITÀ E BARRIERE ARCHITETTONICHE\nDA COMPLETARE"},"© / ℗",null,null,null,null,{"$f":"SUMIFS(K66:K68,H66:H68,\"X\")","v":0},{"$f":"SUMIFS(K66:K68,I66:I68,\"X\")","v":0},{"$f":"COUNTIF(J66:J68,\"X\")","v":0},{"$f":"IFERROR(IF(COUNTA(H66:J68)=0,\"\",H65/(H65+I65)*10),\"\")","v":""},null,null,null,{"$f":"IF(COUNTIFS(I66:I68,\"=x\")<>0,\"//\",\"\")","v":""},null,null,null,{"$f":"CONCATENATE(IF(S66<>\"\",S66&CHAR(44)&CHAR(32),\"\"),IF(S67<>\"\",S67&CHAR(44)&CHAR(32),\"\"),IF(S68<>\"\",S68&CHAR(44)&CHAR(32),\"\"))","v":""}]
["D6.01","RAMPE DI ACCESSO (PENDENZA 5-8%);","℗",null,null,null,null,null,null,null,2,null,null,null,{"$f":"IF(I66=\"X\", \"Preferire ambienti con rampe di accesso aventi pendenza massima tra 5-8%\",\"\")","v":""},null,null,null,{"$f":"IF(I66<>\"\",A66,\"\")","v":""}]
["D6.02","LARGHEZZA PORTE 80-100 CM;","℗",null,null,null,null,null,null,null,3,null,null,null,{"$f":"IF(I67=\"X\", \"Preferire ambienti con porte aventi larghezza 80-100 cm\",\"\")","v":""},null,null,null,{"$f":"IF(I67<>\"\",A67,\"\")","v":""}]
["D6.03","LARGHEZZA CORRIDOI MINIMA 120 CM;","℗",null,null,null,null,null,null,null,2,null,null,null,{"$f":"IF(I68=\"X\", \"Preferire ambienti con corridoi aventi larghezza minima di 120 cm\",\"\")","v":""},null,null,null,""]
["E1",{"$f":"CONCATENATE(\"ILLUMINAZIONE NATURALE E ARTIFICIALE\",IF(COUNTA(H74:J77,D70:F73)<>COUNTA(B70:B77),CHAR(10)&\"DA COMPLETARE\",IF(E69<>0,CHAR(10)&\"SPAZIO CW NON CONFORME\",\"\")))","v":"ILLUMINAZIONE NATURALE E ARTIFICIALE\nDA COMPLETARE"},"© / ℗",{"$f":"COUNTIF(D70:D73,\"X\")","v":0},{"$f":"COUNTIF(E70:E73,\"X\")","v":0},{"$f":"COUNTIF(F70:F73,\"X\")","v":0},{"$f":"IF(COUNTA(D70:F73)=0,\"\",(COUNTA(B70:B73)-COUNTA(F70:F73)-SUM(G70:G73))/(COUNTA(B70:B73)-COUNTA(F70:F73))*10)","v":""},{"$f":"SUMIFS(K74:K77,H74:H77,\"X\")","v":0},{"$f":"SUMIFS(K74:K77,I74:I77,\"X\")","v":0},{"$f":"COUNTIF(J74:J77,\"X\")","v":0},{"$f":"IFERROR(IF(COUNTA(H74:J77)=0,\"\",H69/(H69+I69)*10),\"\")","v":""},{"$f":"IF(COUNTIFS(E70:E73,\"=x\")<>0,\"//\",\"\")","v":""},null,null,{"$f":"IF(COUNTIFS(I74:I77,\"=x\")<>0,\"//\",\"\")","v":""},null,null,{"$f":"CONCATENATE(IF(R70<>\"\",R70&CHAR(44)&CHAR(32),\"\"),IF(R71<>\"\",R71&CHAR(44)&CHAR(32),\"\"),IF(R72<>\"\",R72&CHAR(44)&CHAR(32),\"\"),IF(R73<>\"\",R73&CHAR(44)&CHAR(32),\"\"))","v":""},{"$f":"CONCATENATE(IF(S74<>\"\",S74&CHAR(44)&CHAR(32),\"\"),IF(S75<>\"\",S75&CHAR(44)&CHAR(32),\"\"),IF(S76<>\"\",S76&CHAR(44)&CHAR(32),\"\"),IF(S77<>\"\",S77&CHAR(44)&CHAR(32),\"\"))","v":""}]
["E1.01","PRESENZA DI ILLUMINAZIONE ARTIFICIALE CON COLORI SIMILI A QUELLA NATURALE (BIANCO NEUTRO O BIANCO CALDO) E DISTRIBUITA SU TUTTO L’AMBIENTE DI LAVORO","©",null,null,null,{"$f":"IFERROR(IF(E70=\"X\",1,\"\"),\"\")","v":""},null,null,null,null,{"$f":"IF(E70=\"X\", \"Modificare la tonalità dell'illuminazione artificiale in favore del bianco neutro o bianco caldo\",\"\")","v":""},null,null,null,null,null,{"$f":"IF(E70<>\"\",A70,\"\")","v":""}]
["E1.02","PRESENZA DI UN GRADO DI ILLUMINAZIONE TALE DA CONSENTIRE UN ADEGUATO E SUFFICIENTE ILLUMINAMENTO DELLA POSTAZIONE DI LAVORO","©",null,null,null,"",null,null,null,null,{"$f":"IF(E71=\"X\", \"Installare illuminazione integrativa per raggiungere i 500 lux sulle postazioni di lavoro e i 300 lux sugli spazi circostanti\",\"\")","v":""},null,null,null,null,null,{"$f":"IF(E71<>\"\",A71,\"\")","v":""}]
["E1.03","PRESENZA DI DISPOSITIVI OSCURANTI REGOLABILI PER L’ATTENUAZIONE DELLA LUCE DIURNA INSTALLATI SULLE FINESTRE","©",null,null,null,"",null,null,null,null,{"$f":"IF(E72=\"X\", \"Installare dispositivi oscuranti regolabili sulle finestre\",\"\")","v":""},null,null,null,null,null,""]
["E1.04","GLI IMPIANTI DI ILLUMINAZIONE ARTIFICIALE SONO INSTALLATI IN MODO CHE NON RAPPRESENTINO UN RISCHIO DI INFORTUNIO?","©",null,null,null,"",null,null,null,null,{"$f":"IF(E73=\"X\", \"Rimodulare la disposizone degli impianti di illuminazione artificiale affinchè non rappresentino un fattore di rischio\",\"\")","v":""},null,null,null,null,null,""]
["E1.05","PRESENZA DI LUCI LED","℗",null,null,null,null,null,null,null,2,null,null,null,{"$f":"IF(I74=\"X\", \"Dotare gli ambienti di luci a led\",\"\")","v":""},null,null,null,{"$f":"IF(I74<>\"\",A74,\"\")","v":""}]
["E1.06","PRESENZA DI UN SISTEMA PER LA REGOLAZIONE DELL’INTENSITÀ DELL’ILLUMINAZIONE","℗",null,null,null,null,null,null,null,2,null,null,null,{"$f":"IF(I75=\"X\", \"Dotare gli ambienti di un dispositivo per la regolazione dell'intensità dell'illuminazione\",\"\")","v":""},null,null,null,""]
["E1.07","PRESENZA DI UN PROGETTO ILLUMINOTECNICO","℗",null,null,null,null,null,null,null,3,null,null,null,{"$f":"IF(I76=\"X\", \"Incaricare un tecnico per le progettazione illuminotecnica dell'ambiente\",\"\")","v":""},null,null,null,""]
["E1.08","PRESENZA DI RIFLETTORI E LENTI IN GRADO DI RIDURRE L’ABBAGLIAMENTO","℗",null,null,null,null,null,null,null,1,null,null,null,{"$f":"IF(I77=\"X\", \"Dotare gli ambienti  di riflettori e lenti in grado di ridurre l'abbagliamento\",\"\")","v":""},null,null,null,""]
["E2",{"$f":"CONCATENATE(\"AREAZIONE DEGLI AMBIENTI\",IF(COUNTA(H79:J79,)<>COUNTA(B79:B79),CHAR(10)&\"DA COMPLETARE\",IF(E78<>0,CHAR(10)&\"SPAZIO CW NON CONFORME\",\"\")))","v":"AREAZIONE DEGLI AMBIENTI"},"© / ℗",null,null,null,null,{"$f":"SUMIFS(K79,H79,\"X\")","v":0},{"$f":"SUMIFS(K79,I79,\"X\")","v":0},{"$f":"COUNTIF(J79,\"X\")","v":0},{"$f":"IFERROR(IF(COUNTA(H79:J79)=0,\"\",H78/(H78+I78)*10),\"\")","v":""},null,null,null,{"$f":"IF(COUNTIFS(I79,\"=x\")<>0,\"//\",\"\")","v":""},null,null,null,{"$f":"IF(S79<>\"\",S79,\"\")","v":""}]
["E2.01","PRESENZA, ALL’INTERNO DEI SERVIZI IGIENICI, DI UFINESTRA APRIBILE","℗",null,null,null,null,null,null,null,1,null,null,null,{"$f":"IF(I79=\"X\", \"Preferire ambienti con servizi igienici dotati di finestre apribili\",\"\")","v":""},null,null,null,{"$f":"IF(I79<>\"\",A79,\"\")","v":""}]
["F2",{"$f":"CONCATENATE(\"IMPIANTI MECCANICI (RISCALDAMENTO, RAFFRESCAMENTO, CLIMATIZZAZIONE E IDRICO SANITARIO)\",IF(COUNTA(H82:J83,D81:F81)<>COUNTA(B81:B83),CHAR(10)&\"DA COMPLETARE\",IF(E80<>0,CHAR(10)&\"SPAZIO CW NON CONFORME\",\"\")))","v":"IMPIANTI MECCANICI (RISCALDAMENTO, RAFFRESCAMENTO, CLIMATIZZAZIONE E IDRICO SANITARIO)\nDA COMPLETARE"},"© / ℗",{"$f":"COUNTIF(D81:D81,\"X\")","v":0},{"$f":"COUNTIF(E81:E81,\"X\")","v":0},{"$f":"COUNTIF(F81:F81,\"X\")","v":0},{"$f":"IF(COUNTA(D81:F81)=0,\"\",(COUNTA(B81:B81)-COUNTA(F81:F81)-SUM(G81:G81))/(COUNTA(B81:B81)-COUNTA(F81:F81))*10)","v":""},{"$f":"SUMIFS(K81:K83,H81:H83,\"X\")","v":0},{"$f":"SUMIFS(K81:K83,I81:I83,\"X\")","v":0},{"$f":"COUNTIF(J81:J83,\"X\")","v":0},{"$f":"IFERROR(IF(COUNTA(H81:J83)=0,\"\",H80/(H80+I80)*10),\"\")","v":""},{"$f":"IF(COUNTIFS(E81,\"=x\")<>0,\"//\",\"\")","v":""},null,null,{"$f":"IF(COUNTIFS(I82:I83,\"=x\")<>0,\"//\",\"\")","v":""},null,null,{"$f":"IF(R81<>\"\",R81&CHAR(44)&CHAR(32),\"\")","v":""},{"$f":"CONCATENATE(IF(S82<>\"\",S82&CHAR(44)&CHAR(32),\"\"),IF(S83<>\"\",S83&CHAR(44)&CHAR(32),\"\"))","v":""}]
["F2.01","PRESENZA, DI UN IMPIANTO DI RAFFRESCAMENTO O CLIMATIZZAZIONE (AD ESCLUSIONE DEI LOCALI DEPOSITO)","©",null,null,null,{"$f":"IFERROR(IF(E81=\"X\",1,\"\"),\"\")","v":""},null,null,null,null,{"$f":"IF(E81=\"X\", \"Installare impianto di raffrescamento e/o climatizzazione\",\"\")","v":""},null,null,null,null,null,{"$f":"IF(E81<>\"\",A81,\"\")","v":""}]
["F2.02","PRESENZA DI IMPIANTI DOTATI DI REGOLAZIONE AUTONOMA ","℗",null,null,null,null,null,null,null,3,null,null,null,{"$f":"IF(I82=\"X\", \"Preferire ambienti con impianti dotati di dispositivi di regolazione autonoma\",\"\")","v":""},null,null,null,{"$f":"IF(I82<>\"\",A82,\"\")","v":""}]
["F2.03","LOCALI SERVITI DA IMPIANTI DI VENTILAZIONE A TUTTA ARIA ESTERNA","℗",null,null,null,null,null,null,null,2,null,null,null,{"$f":"IF(I83=\"X\", \"Preferire ambienti con impianti dotati di impianto di ventilazione a tutta aria esterna\",\"\")","v":""},null,null,null,""]
["F3",{"$f":"CONCATENATE(\"IMPIANTI DI EMERGENZA\",IF(SUM(D84:F84)<>COUNTA(B85:B85),CHAR(10)&\"DA COMPLETARE\",IF(E84<>0,CHAR(10)&\"SPAZIO CW NON CONFORME\",\"\")))","v":"IMPIANTI DI EMERGENZA\nDA COMPLETARE"},"© / ℗",{"$f":"COUNTIF(D85:D85,\"X\")","v":0},{"$f":"COUNTIF(E85:E85,\"X\")","v":0},{"$f":"COUNTIF(F85:F85,\"X\")","v":0},{"$f":"IFERROR(IF(COUNTA(D85:F85)=0,\"\",(COUNTA(A85:A85)-COUNTA(F85:F85)-SUM(G85:G85))/(COUNTA(A85:A85)-COUNTA(F85:F85))*10),\"\")","v":""},null,null,null,null,{"$f":"IF(COUNTIFS(E85,\"=x\")<>0,\"//\",\"\")","v":""},null,null,null,null,null,{"$f":"IF(R85<>\"\",R85&CHAR(44)&CHAR(32),\"\")","v":""}]
["F3.01","PRESENZA DI LUCI DI EMERGENZA DISTRIBUITE UNIFORMEMENTE SULLE VIE DI ESODO ","©",null,null,null,{"$f":"IFERROR(IF(E85=\"X\",1,\"\"),\"\")","v":""},null,null,null,null,{"$f":"IF(E85=\"X\", \"Installare / integrare le luci di emergenza lungo le vie di esoso (min 2 lux misurati ad 1 mt dal pavimento negli ambienti di lavoro e min 5 lux lungo le vie di esodo\",\"\")","v":""},null,null,null,null,null,{"$f":"IF(G85<>\"\",A85,\"\")","v":""}]
["F4",{"$f":"CONCATENATE(\"ALTRI IMPIANTI\",IF(COUNTA(H87:J89)<>COUNTA(B87:B89),CHAR(10)&\"DA COMPLETARE\",))","v":"ALTRI IMPIANTI\nDA COMPLETARE"},"© / ℗",null,null,null,null,{"$f":"SUMIFS(K87:K89,H87:H89,\"X\")","v":0},{"$f":"SUMIFS(K87:K89,I87:I89,\"X\")","v":0},{"$f":"COUNTIF(J87:J89,\"X\")","v":0},{"$f":"IFERROR(IF(COUNTA(H87:J89)=0,\"\",H86/(H86+I86)*10),\"\")","v":""},null,null,null,{"$f":"IF(COUNTIFS(O87:Q89,\"=x\")<>0,\"//\",\"\")","v":""},null,null,null,{"$f":"CONCATENATE(IF(S87<>\"\",S87&CHAR(44)&CHAR(32),\"\"),IF(S88<>\"\",S88&CHAR(44)&CHAR(32),\"\"),IF(S89<>\"\",S89&CHAR(44)&CHAR(32),\"\"))","v":""}]
["F4.01","IMPIANTO ANTINTRUSIONE;","℗",null,null,null,null,null,null,null,1,null,null,null,{"$f":"IF(I87=\"X\", \"Dotare l'ambiente di un impianto antintrusione\",\"\")","v":""},null,null,null,{"$f":"IF(I87<>\"\",A87,\"\")","v":""}]
["F4.02","IMPIANTO VIDEOSORVEGLIANZA;","℗",null,null,null,null,null,null,null,2,null,null,null,{"$f":"IF(I88=\"X\", \"Dotare l'ambiente di un impianto di videosorveglianza\",\"\")","v":""},null,null,null,{"$f":"IF(I88<>\"\",A88,\"\")","v":""}]
["F4.03","VIDEOCITOFONO / GUARDIANIA IN LOCO","℗",null,null,null,null,null,null,null,3,null,null,null,{"$f":"IF(I89=\"X\", \"Dotare l'ambiente di un impianto con videocitofono o istituire un servizio guardiania in loco\",\"\")","v":""},null,null,null,""]
[null,"VALORE TOTALE RISCONTRI AMMISSIBILI",null,{"$f":"10*COUNTA(A55,A47,A51,A69,A80,A84,A36)","v":70},{"$f":"SUM(G47,G51,G69,G55,G80,G84,G36,)","v":0},null,null,{"$f":"10*COUNT(K27,K43,K47,K51,K55,K65,K69,K78,K86,K80)","v":0},{"$f":"SUM(K27,K43,K47,K51,K55,K65,K69,K78,K80,K86,)","v":0}]
[]
[]
["VALUTAZIONE"]
[]
["INDICE DI EFFICIENZA COMPLESSIVO COGENZE ",null,{"$f":"IF(AND(E90=0),\"-\",E90/D90*10)","v":"-"},null,"INDICE DI EFFICIENZA COMPLESSIVO PREFERENZE ",null,null,null,{"$f":"IF(AND(I90=0),\"-\",I90/H90*10)","v":"-"}]
[]
["ESITO DELLA VERIFICA",null,"NON IDONEO","IDONEO A SEGUITO DI ADEGUAMENTO",null,"IDONEO"]
[]
[null,null,{"$f":"IF(AND(C95<0.85,C95<>\"-\"),\"X\",\"\")","v":""},{"$f":"IF(AND(C95>=0.85,C95<>\"-\"),\"X\",\"\")","v":""},null,{"$f":"IF(AND(C95=1,C95<>\"-\"),\"X\",\"\")","v":""}]

{"sheet":"ANALISI REQUISITI ANTINCENDIO","index":3,"n_rows":31,"n_cols":20,"rows_kept":31,"cut":false,"hidden":false,"merged":[[14,14,14,15],[15,14,15,15],[16,14,16,15],[17,14,17,15],[18,14,18,15],[19,14,19,15],[20,14,20,15],[23,14,23,15],[24,14,24,15],[23,12,23,13],[24,12,24,13],[25,1,25,2],[30,0,30,1],[11,4,11,7],[11,8,11,11],[28,0,28,15],[14,12,14,13],[15,12,15,13],[16,12,16,13],[17,12,17,13],[18,12,18,13],[19,12,19,13],[20,12,20,13],[21,12,21,13],[22,12,22,13],[21,14,21,15],[22,14,22,15],[13,12,13,13],[7,8,7,10],[10,12,11,15],[4,2,4,3],[5,2,5,4],[4,5,4,7],[6,2,6,4],[7,2,7,4],[5,8,5,10],[10,4,10,11],[6,8,6,10],[12,12,12,13],[12,14,12,15],[13,14,13,15],[4,9,4,10]]}
[null,null,null,null,null,null,null,null,null,null,null,null,null,null,null,"Codice del documento:",null,null,"TIPO_21A_113BC",1]
["CHECK LIST DI VERIFICA SPAZIO COWORKING (ANALISI DI DETTAGLIO)",null,null,null,null,null,null,null,null,null,null,null,null,null,null,{"$f":"SINTESI!P5","v":"M01"},null,null,"TIPO_34A_233BC",2]
["Rif. D.Lgs. 81/2008 - Allegato IV - Regolamenti edilizi e di igiene",null,null,null,null,null,null,null,null,null,null,null,null,null,null,null,null,null,"TIPO_55A_233BC",3]
[null,null,null,null,null,null,null,null,null,null,null,null,null,null,null,null,null,null,"ALTRO_TIPO",4]
["CITTA'",{"$f":"SINTESI!B8","v":"--"},"CATEGORIA UFFICI",null,{"$f":"CLAUF","v":""},"SE È PRESENTE UN CPI O SCIA ANTINCENDIO SONO ANCORA IN CORSO DI VALIDITÀ?",null,null,{"$f":"IF(ANSCIA<>\"\",ANSCIA,\"\")","v":""},"A2 TIPOLOGIA DI EDIFICIO \nAnno instaurazione destinazione ufficio",null,{"$f":"AIDU","v":0},"Quota pavimento da strada (m)",null,"DATA",{"$f":"SINTESI!R8","v":"--"}]
["VIA",{"$f":"SINTESI!B9","v":"--"},"Sono previste modifiche sostanziali?",null,null,null,"Ci sono estintori?",null,"Indicare il numero di Porte di uscita finali verso l'esterno",null,null,null,"Ci sono idranti?",null,"L'edificio è usato per altre attività?"]
["CIVICO",{"$f":"SINTESI!B10","v":"--"},"N°di Scale di uscita dal Piano coworking (se piano coworking diverso 0/terra)",null,null,null,{"$f":"IF(EST=\"SI\",\"Indicare n° estintori\",\"\")","v":""},null,"Le porte di uscita e/o dei vani scala si aprono nel verso dell'esodo?",null,null,null,"C'è un impianto di allarme incendio?",null,{"$f":"IF(EDAA=\"SI\",\"Ci sono comunicazioni dirette con le altre attività?\",\"\")","v":""}]
["PIANO",{"$f":"SINTESI!B11","v":"--"},"Le scale sono contrapposte?",null,null,null,{"$f":"IF(EST=\"SI\",\"Indicare Tipologia estintori\",\"\")","v":""},null,"Presenza sala riunioni",null,null,null,"Ci sono rilevatori incendio?",null,{"$f":"IF(EDAA=\"SI\",\"Le altre attività sono pertinenti?\",\"\")","v":""}]
[]
[]
[null,null,null,null,"VALUTAZIONE",null,null,null,null,null,null,null,"NOTE"]
[null,null,null,null,"CARATTERISTICHE COGENTI",null,null,null,"CARATTERISTICHE PREFERENZIALI"]
["CODICE DEL RISCONTRO","DESCRIZIONE DEL RISCONTRO","TIPO RISCONTRO",null,"C ","NC","NA","PUNTEGGIO COGENZE","PRESENTE","ASSENTE","NA","PUNTEGGIO PREFERENZE ","AZIONI CORRETTIVE DA ATTIVARE",null,"AZIONI DI MIGLIORAMENTO DA ATTIVARE",null,"RIEPILOGO PUNTI AC","RIEPILOGO PUNTI AM"]
["C",{"$f":"CONCATENATE(\"REQUISITI ANTINCENDIO\",IF(SUM(E14:G14,I14:J14)<>COUNTA(B15:B25),\" DA COMPLETARE\",IF(F14<>0,\" SPAZIO CW NON CONFORME\",\"\")))","v":"REQUISITI ANTINCENDIO DA COMPLETARE"},"© / ℗",null,{"$f":"COUNTIF(E15:E25,\"X\")","v":0},{"$f":"COUNTIF(F15:F25,\"X\")","v":0},{"$f":"COUNTIF(G15:G25,\"X\")","v":0},{"$f":"IF(COUNTIF(E15:G25,\"X\")=0,\"\",(COUNTA(B15:B25)-COUNTIF(G15:G25,\"X\")-SUM(H15:H25))/(COUNTA(B15:B25)-COUNTIF(G15:G25,\"X\"))*10)","v":""},{"$f":"COUNTIF(I15:I25,\"X\")","v":0},{"$f":"COUNTIF(J15:J25,\"X\")","v":0},{"$f":"COUNTIF(K15:K25,\"X\")","v":0},{"$f":"IF(COUNTIF(I20,\"X\")=0,\"\",(COUNTA(C20)-SUM(L20))/COUNTA(C20)*10)","v":""},{"$f":"IF(COUNTIFS(F15:F25,\"=x\")<>0,\"//\",\"\")","v":""},null,{"$f":"IF(COUNTIFS(J15:J25,\"=x\")<>0,\"//\",\"\")","v":""},null,{"$f":"CONCATENATE(IF(Q15<>\"\",Q15&CHAR(44)&CHAR(32),\"\"),IF(Q16<>\"\",Q16&CHAR(44)&CHAR(32),\"\"),IF(Q17<>\"\",Q17&CHAR(44)&CHAR(32),\"\"),IF(Q18<>\"\",Q18&CHAR(44)&CHAR(32),\"\"),IF(Q19<>\"\",Q19&CHAR(44)&CHAR(32),\"\"),IF(Q20<>\"\",Q20&CHAR(44)&CHAR(32),\"\"),IF(Q21<>\"\",Q21&CHAR(44)&CHAR(32),\"\"),IF(Q22<>\"\",Q22&CHAR(44)&CHAR(32),\"\"),IF(Q23<>\"\",Q23&CHAR(44)&CHAR(32),\"\"),IF(Q24<>\"\",Q24&CHAR(44)&CHAR(32),\"\"),IF(Q25<>\"\",Q25&CHAR(44)&CHAR(32),\"\"))","v":""},{"$f":"CONCATENATE(IF(R20<>\"\",R20&CHAR(44)&CHAR(32),\"\"))","v":""}]
["C.01","AFFOLLAMENTO  MASSIMO PARI A 0,1 PERSONE/MQ","©",{"$f":"IF(OR(APC=\"\",SPC=\"\"),\"\",IF(APC>SPC/10,\"NC\",\"C\"))","v":""},{"$f":"IF(D15=\"\",\"\",IF(D15=\"C\",\"X\",\"\"))","v":""},{"$f":"IF(D15=\"NC\",\"X\",\"\")","v":""},{"$f":"IF(D15=\"NA\",\"X\",\"\")","v":""},{"$f":"IFERROR(IF(F15=\"X\",1,\"\"),\"\")","v":""},null,null,null,null,{"$f":"IF(F15=\"X\", \"Ridurre numero di presenze previste all'interno dello spazio nei limiti di 1 persona ogni 10 mq\",\"\")","v":""},null,null,null,{"$f":"IF(F15<>\"\",A15,\"\")","v":""}]
["C.02","DOCUMENTAZIONE VIGILI DEL FUOCO - L'ATTIVITA' E' DOTATA DI CPI / SCIA ANTINCENDIO IN CORSO DI VALIDITA'","©",{"$f":"IF(CLAUF=\"\",\"\",IF(AND(CLAUF=\"C.3\",ANSCIA=\"\"),\"NC\",IF(AND(CLAUF=\"C.3\",ANSCIA=\"SI\",PMS=\"NO\"),\"C\",IF(AND(CLAUF=\"C.3\",ANSCIA=\"SI\",PMS=\"SI\"),\"NC\",IF(AND(CLAUF=\"C.3\",ANSCIA=\"NO\"),\"NC\",\"NA\")))))","v":""},{"$f":"IF(D16=\"\",\"\",IF(D16=\"C\",\"X\",\"\"))","v":""},{"$f":"IF(D16=\"NC\",\"X\",\"\")","v":""},{"$f":"IF(D16=\"NA\",\"X\",\"\")","v":""},"",null,null,null,null,{"$f":"IF(F16=\"X\", \"Lo spazio richiede la presenza di CPI / SCIA antincendio\",\"\")","v":""},null,null,null,{"$f":"IF(F16<>\"\",A16,\"\")","v":""}]
["C.03","UBICAZIONE E SEPARAZIONE - L'ATTIVITA' E' ADEGUATAMENTE SEPARATO DA ALTRE ATTIVITA' SITUATE NEL MEDESIMO EDIFICIO","©",{"$f":"IF(CLAUF=\"\",\"\",IF(AND(CLAUF=\"C.3\",PMS=\"NO\"),\"C\",IF(AND(CLAUF=\"C.2\",OR(AND(AIDU<2006,PMS=\"SI\"),AIDU>2006)),IF(EDAA=\"NO\",\"C\",IF(AND(EDAA=\"SI\",OR(CEDAA=\"NO\",PEDAA=\"SI\")),\"C\",IF(AND(EDAA=\"SI\",CEDAA=\"NO\",PEDAA=\"NO\"),\"C\",\"NC\"))),\"NA\")))","v":""},"","","","",null,null,null,null,{"$f":"IF(F17=\"X\", \"Lo spazio non garantisce un'adeguata separazione da altre attività presenti nello stabile, individuare altri spazi da adibire a Coworking\",\"\")","v":""},null,null,null,{"$f":"IF(F17<>\"\",A17,\"\")","v":""}]
["C.04","ESODO  (NUMERO USCITE) - L'ATTIVITA' E' DOTATA DI UN ADEGUATO NUMERO DI VIE D'ESODO","©",{"$f":"IF(APC=\"\",\"\",IF(AND(APC>=50, MAX(NSUP,PUFE)>1,OR(SCONTR=\"SI\",VERSO=\"SI\")),\"C\",IF(AND(APC<50, MAX(NSUP,PUFE)>0),\"C\",\"NC\")))","v":""},"","","","",null,null,null,null,{"$f":"IF(F18=\"X\", \"Uscite di emergenza non sufficienti, ridurre il numero previsto di occupanti dello spazio\",\"\")","v":""},null,null,null,{"$f":"IF(F18<>\"\",A18,\"\")","v":""}]
["C.05","ESODO (LARGHEZZA USCITE) - LE USCITE DI SICUREZZA HANNO UNA LARGHEZZA ADEGUATA","©",null,"",{"$f":"IF(D19=\"NC\",\"X\",\"\")","v":""},"","",null,null,null,null,null,null,null,null,{"$f":"IF(F19<>\"\",A19,\"\")","v":""}]
["C.06","ESODO (VERSO PORTE) - LE PORTE LUNGO I PERCORSI DI ESODO SI APRONO NEL VERSO DELL'ESODO STESSO","© / ℗",{"$f":"IF(VERSO=\"\",\"\",IF(VERSO=\"SI\",\"C\",\"NC\"))","v":""},{"$f":"IF(APC>50,IF(D20=\"\",\"\",IF(D20=\"C\",\"X\",\"\")),\"\")","v":""},{"$f":"IF(APC>50,IF(D20=\"NC\",\"X\",\"\"),\"\")","v":""},{"$f":"IF(OR(APC>50,D20=\"\"),IF(D20=\"NA\",\"X\",\"\"),\"X\")","v":""},"",{"$f":"IF(APC<=50,IF(D20=\"\",\"\",IF(D20=\"C\",\"X\",\"\")),\"\")","v":""},{"$f":"IF(APC<=50,IF(D20=\"NC\",\"X\",\"\"),\"\")","v":""},{"$f":"IF(APC<=50,IF(D20=\"NA\",\"X\",\"\"),\"\")","v":""},{"$f":"IFERROR(IF(J20=\"X\",1,\"\"),\"\")","v":""},{"$f":"IF(F20=\"X\", \"Invertire senso di apertura delle porte di emergenza\",\"\")","v":""},null,{"$f":"IF(J20=\"X\", \"Invertire senso di apertura delle porte di emergenza\",\"\")","v":""},null,null,{"$f":"IF(J20<>\"\",A20,\"\")","v":""}]
["C.07","ESODO (LUNGHEZZA PERCORSI) - LA LUNGHEZZA DEI PERCORSI DI ESODO E' ADEGUATA","©",null,{"$f":"IF(D21=\"\",\"\",IF(D21=\"C\",\"X\",\"\"))","v":""},{"$f":"IF(D21=\"NC\",\"X\",\"\")","v":""},{"$f":"IF(D21=\"NA\",\"X\",\"\")","v":""},"",null,null,null,null,null,null,null,null,{"$f":"IF(F21<>\"\",A21,\"\")","v":""}]
["C.08","ESTINTORI - SONO PRESENTI ESTINTORI  DI TIPOLOGIA ADEGUATA E IN NUMERO SUFFICIENTE","©",{"$f":"IF(EST=\"NO\",\"NC\",IF(EST=\"\",\"\",IF(AND(TPEST=\"TIPO_21A_113BC\",SPC/NEST<=150),\"C\",IF(AND(TPEST=\"TIPO_34A_233BC\",SPC/NEST<=200),\"C\",IF(AND(TPEST=\"TIPO_55A_233BC\",SPC/NEST<=250),\"C\",\"NC\")))))","v":""},"","","",null,null,null,null,null,{"$f":"IF(F22=\"X\", \"Integrare il numero degli estintori in funzione dei criteri minimi previsti dall'allegato V del DM 10/03/1998\",\"\")","v":""},null,null,null,{"$f":"IF(F22<>\"\",A22,\"\")","v":""}]
["C.09","RETE IDRICA ANTINCENDIO - E' PRESENTE UN IMPIANTO IDRICO ANTINCENDIO (IDRANTI O NASPI)","©",{"$f":"IF(CLAUF=\"\",\"\",IF(AND(CLAUF<>\"C.1\",OR(AIDU>2006,AND(AIDU<2006,PMS=\"SI\",))),IF(IDR=\"SI\",\"C\",\"NC\"),\"NA\"))","v":""},{"$f":"IF(D23=\"\",\"\",IF(D23=\"C\",\"X\",\"\"))","v":""},{"$f":"IF(D23=\"NC\",\"X\",\"\")","v":""},{"$f":"IF(D23=\"NA\",\"X\",\"\")","v":""},{"$f":"IFERROR(IF(F23=\"X\",1,\"\"),\"\")","v":""},null,null,null,null,{"$f":"IF(F23=\"X\", \"Le caratteristiche dello spazio prevedono la presenza di un impianto idrico anticendio - la conformità dello spazio è vincolata alla realizzazione dell'impianto\",\"\")","v":""},null,null,null,{"$f":"IF(F23<>\"\",A23,\"\")","v":""}]
["C.10","IMPIANTO ALLARME - E' PRESENTE UN IMPIANTO PER LA SEGNALAZIONE  E LA DIFFUSIONE DI UN ALLARME ANTINCENDIO E DI EVACUAZIONE","©",{"$f":"IF(ALINC=\"\",\"\",IF(ALINC=\"SI\",\"C\",\"NC\"))","v":""},{"$f":"IF(OR(D24=\"\",CLAUF=\"C.1\"),\"\",IF(D24=\"C\",\"X\",\"\"))","v":""},{"$f":"IF(CLAUF<>\"C.1\",IF(D24=\"NC\",\"X\",\"\"),\"\")","v":""},"","",{"$f":"IF(CLAUF=\"C.1\",IF(D24=\"\",\"\",IF(D24=\"C\",\"X\",\"\")),\"\")","v":""},{"$f":"IF(CLAUF=\"C.1\",IF(D24=\"NC\",\"X\",\"\"),\"\")","v":""},{"$f":"IF(CLAUF=\"C.1\",IF(D24=\"NA\",\"X\",\"\"),\"\")","v":""},{"$f":"IFERROR(IF(J24=\"X\",1,\"\"),\"\")","v":""},{"$f":"IF(F24=\"X\", \"Installare un impianto per la segnalazione e diffusione di un allarme antincendio e di evacuazione\",\"\")","v":""},null,{"$f":"IF(J24=\"X\", \"Installare un impianto per la segnalazione e diffusione di un allarme antincendio e di evacuazione\",\"\")","v":""},null,{"$f":"IF(F24<>\"\",A24,\"\")","v":""}]
["C.11","IMPIANTO RIVELAZIONE INCENDIO - E' PRESENTE UN IMPIANTO DI RIVELAZIONE AUTOMATICA DEGLI INCENDI","©",{"$f":"IF(CLAUF=\"\",\"\",IF(AND(CLAUF<>\"C.1\",OR(AIDU>2006,AND(AIDU<2006,PMS=\"SI\",))),IF(RIL=\"SI\",\"C\",\"NC\"),\"NA\"))","v":""},{"$f":"IF(D25=\"\",\"\",IF(D25=\"C\",\"X\",\"\"))","v":""},{"$f":"IF(D25=\"NC\",\"X\",\"\")","v":""},{"$f":"IF(D25=\"NA\",\"X\",\"\")","v":""},{"$f":"IFERROR(IF(F25=\"X\",1,\"\"),\"\")","v":""},null,null,null,null,{"$f":"IF(F25=\"X\", \"Installare un impianto di rilevazione automatica degli incendi\",\"\")","v":""},null,null,null,{"$f":"IF(F25<>\"\",A25,\"\")","v":""}]
[null,"VALORE TOTALE RISCONTRI AMMISSIBILI",null,null,{"$f":"10","v":10},{"$f":"SUM(H14)","v":0}]
[]
[]
["VALUTAZIONE"]
[]
["INDICE DI EFFICIENZA COMPLESSIVO COGENZE ",null,{"$f":"IF(AND(F26=0),\"-\",F26/E26*10)","v":"-"}]

{"sheet":"ANALISI DOTAZIONI INTERNE","index":4,"n_rows":64,"n_cols":19,"rows_kept":64,"cut":false,"hidden":false,"merged":[[61,0,61,16],[58,1,58,2],[63,0,63,1],[63,4,63,7],[27,11,27,14],[27,15,27,16],[28,11,28,14],[28,15,28,16],[29,11,29,14],[29,15,29,16],[37,11,37,14],[37,15,37,16],[38,11,38,14],[38,15,38,16],[36,11,36,14],[36,15,36,16],[31,11,31,14],[31,15,31,16],[42,11,42,14],[42,15,42,16],[33,11,33,14],[33,15,33,16],[34,11,34,14],[34,15,34,16],[14,15,14,16],[21,11,21,14],[21,15,21,16],[22,11,22,14],[22,15,22,16],[23,11,23,14],[23,15,23,16],[14,11,14,14],[12,3,12,10],[13,3,13,6],[15,11,15,14],[15,15,15,16],[16,11,16,14],[16,15,16,16],[17,11,17,14],[17,15,17,16],[18,11,18,14],[18,15,18,16],[19,11,19,14],[19,15,19,16],[20,11,20,14],[20,15,20,16],[13,7,13,10],[12,11,13,16],[8,1,8,2],[8,3,8,5],[8,11,8,12],[8,13,8,16],[8,6,8,7],[8,8,8,9],[7,1,7,2],[7,3,7,5],[7,11,7,12],[7,13,7,16],[7,6,7,7],[7,8,7,9],[9,1,9,2],[9,3,9,5],[9,11,9,15],[10,1,10,2],[10,3,10,5],[10,11,10,12],[9,6,9,7],[10,6,10,7],[10,13,10,14],[24,11,24,14],[24,15,24,16],[25,11,25,14],[25,15,25,16],[26,11,26,14],[26,15,26,16],[30,11,30,14],[30,15,30,16],[32,11,32,14],[32,15,32,16],[35,15,35,16],[43,11,43,14],[43,15,43,16],[44,11,44,14],[44,15,44,16],[45,11,45,14],[45,15,45,16],[39,11,39,14],[39,15,39,16],[40,11,40,14],[40,15,40,16],[41,11,41,14],[41,15,41,16],[35,11,35,14],[49,11,49,14],[49,15,49,16],[50,11,50,14],[50,15,50,16],[51,11,51,14],[51,15,51,16],[46,11,46,14],[46,15,46,16],[47,11,47,14],[47,15,47,16],[48,11,48,14],[48,15,48,16],[55,11,55,14],[55,15,55,16],[56,11,56,14],[56,15,56,16],[57,11,57,14],[57,15,57,16],[54,11,54,14],[54,15,54,16],[52,11,52,14],[52,15,52,16],[53,11,53,14],[53,15,53,16]]}
[]
["Analisi conformità spazio da adibire a COWORKING"]
[]
[null,null,null,null,null,null,null,null,null,null,null,null,null,null,null,null,"Codice del documento:"]
["CHECK LIST DI VERIFICA SPAZIO COWORKING (ANALISI DOTAZIONI INTERNE)",null,null,null,null,null,null,null,null,null,null,null,null,null,null,null,"=SINTESI!P5"]
["Rif. D.Lgs. 81/2008 - Allegato IV - Regolamenti edilizi e di igiene"]
[]
["CITTA'",{"$f":"SINTESI!B8","v":"--"},null,"A1 INQUADRAMENTO LOGISTICO TERRITORIALE",null,null,{"$f":"SINTESI!G8","v":0},null,"N° Piano coworking",null,{"$f":"PCW","v":0},"REFERENTE",null,{"$f":"SINTESI!L8","v":"--"}]
["VIA",{"$f":"SINTESI!B9","v":"--"},null,"A2 TIPOLOGIA DI EDIFICIO \nAnno instaurazione destinazione ufficio",null,null,{"$f":"SINTESI!G9","v":0},null,"Superficie Piano coworking m2",null,{"$f":"SPC","v":0},"CONTATTO",null,{"$f":"SINTESI!P8","v":"--"}]
["CIVICO",{"$f":"SINTESI!B10","v":"--"},null,"B1 DIMENSIONI DELLE SEDI \nAffollamento del piano coworking (n° persone)",null,null,{"$f":"SINTESI!G10","v":0},null,null,null,null,"AFFOLLAMENTO POTENZIALE ALTRI PIANI",null,null,null,null,{"$f":"SINTESI!M10","v":0}]
["PIANO",{"$f":"SINTESI!B11","v":"--"},null,"B2 CLASSIFICAZIONE DEGLI SPAZI",null,null,{"$f":"SINTESI!G11","v":0},null,null,null,null,"CATEGORIA UFFICI",null,{"$f":"SINTESI!L11","v":""},null,"DATA",{"$f":"SINTESI!R8","v":"--"}]
[]
[null,null,null,"VALUTAZIONE",null,null,null,null,null,null,null,"NOTE"]
[null,null,null,"CARATTERISTICHE COGENTI",null,null,null,"CARATTERISTICHE PREFERENZIALI"]
["CODICE DEL RISCONTRO","DESCRIZIONE DEL RISCONTRO","TIPO RISCONTRO","C ","NC","NA","PUNTEGGIO COGENZE","PRESENTE","ASSENTE","NA","PUNTEGGIO PREFERENZE ","AZIONI CORRETTIVE DA ATTIVARE",null,null,null,"AZIONI DI MIGLIORAMENTO DA ATTIVARE",null,"RIEPILOGO PUNTI AC","RIEPILOGO PUNTI AM"]
["D4",{"$f":"CONCATENATE(\"ERGONOMIA DEGLI SPAZI E DELLE POSTAZIONI \",IF(COUNTA(D17:F21,H22:J31)<>COUNTA(B17:B31),CHAR(10)&\"DA COMPLETARE\",IF(E16<>0,CHAR(10)&\"SPAZIO CW NON CONFORME\",\"\")))","v":"ERGONOMIA DEGLI SPAZI E DELLE POSTAZIONI \nDA COMPLETARE"},"© / ℗",{"$f":"COUNTIF(D17:D21,\"X\")","v":0},{"$f":"COUNTIF(E17:E21,\"X\")","v":0},{"$f":"COUNTIF(F17:F21,\"X\")","v":0},{"$f":"IF(COUNTA(D17:F21)=0,\"\",(COUNTA(B17:B21)-COUNTA(F17:F21)-SUM(G17:G21))/(COUNTA(B17:B21)-COUNTA(F17:F21))*10)","v":""},{"$f":"SUMIFS(K22:K31,H22:H31,\"X\")","v":0},{"$f":"SUMIFS(K22:K31,I22:I31,\"X\")","v":0},{"$f":"COUNTIF(J22:J31,\"X\")","v":0},{"$f":"IFERROR(IF(COUNTA(H22:J31)=0,\"\",H16/(H16+I16)*10),\"\")","v":""},{"$f":"IF(COUNTIFS(E17:E21,\"=x\")<>0,\"//\",\"\")","v":""},null,null,null,{"$f":"IF(COUNTIFS(I22:I31,\"=x\")<>0,\"//\",\"\")","v":""},null,{"$f":"CONCATENATE(IF(R17<>\"\",R17&CHAR(44)&CHAR(32),\"\"),IF(R18<>\"\",R18&CHAR(44)&CHAR(32),\"\"),IF(R19<>\"\",R19&CHAR(44)&CHAR(32),\"\"),IF(R20<>\"\",R20&CHAR(44)&CHAR(32),\"\"),IF(R21<>\"\",R21&CHAR(44)&CHAR(32),\"\"))","v":""},{"$f":"CONCATENATE(IF(S22<>\"\",S22&CHAR(44)&CHAR(32),\"\"),IF(S23<>\"\",S23&CHAR(44)&CHAR(32),\"\"),IF(S24<>\"\",S24&CHAR(44)&CHAR(32),\"\"),IF(S25<>\"\",S25&CHAR(44)&CHAR(32),\"\"),IF(S26<>\"\",S26&CHAR(44)&CHAR(32),\"\"),IF(S27<>\"\",S27&CHAR(44)&CHAR(32),\"\"),IF(S28<>\"\",S28&CHAR(44)&CHAR(32),\"\"),IF(S29<>\"\",S29&CHAR(44)&CHAR(32),\"\"),IF(S30<>\"\",S30&CHAR(44)&CHAR(32),\"\"),IF(S31<>\"\",S31&CHAR(44)&CHAR(32),\"\"))","v":""}]
["D4.01","PRESENZA SPAZI DI PASSAGGIO DI ALMENO 80 CM E POSTAZIONI CON SPAZIO SUFFICIENTE ALMENO PER PERMETTERE CAMBIAMENTI DI POSIZIONE E MOVIMENTI OPERATIVI","©",null,null,null,{"$f":"IFERROR(IF(E17=\"X\",1,\"\"),\"\")","v":""},null,null,null,null,{"$f":"IF(E17=\"X\", \"Rimodulare la disposizione delle postazioni al fine di garantire la presenza di uno spazio di passaggio di almeno 80 cm\",\"\")","v":""},null,null,null,null,null,{"$f":"IF(E17<>\"\",A17,\"\")","v":""}]
["D4.02","PRESENZA DI UN PIANO DI LAVORO STABILE E CONFORME (VEDI NOTE)","©",null,null,null,"",null,null,null,null,{"$f":"IF(E18=\"X\", \"Sostituire / integrare le scrivanie presenti in funzione dei requisiti di siciurezza previsti dalla normativa vigente - vedere campo note punto D4.02\",\"\")","v":""},null,null,null,null,null,{"$f":"IF(E18<>\"\",A18,\"\")","v":""}]
["D4.03","PRESENZA DI UNA SEDIA DI LAVORO STABILE E CONFORME (VEDI NOTE)","©",null,null,null,"",null,null,null,null,{"$f":"IF(E19=\"X\", \"Sostituire / integrare le sedie presenti in funzione dei requisiti di siciurezza previsti dalla normativa vigente - vedere campo note punto D4.03\",\"\")","v":""},null,null,null,null,null,{"$f":"IF(E19<>\"\",A19,\"\")","v":""}]
["D4.04","PRESENZA DI UN POGGIAPIEDI PER AGLI ARTI INFERIORI A DISPOSIZIONE SE RICHIESTO (DIMENSIONI 40 X 30 CM, ALTEZZA X 15 CM E INCLINAZIONE 0-20°)","©",null,null,null,"",null,null,null,null,{"$f":"IF(E20=\"X\", \"Prevedere, per ogni postazione, la presenza di un poggiapiedi per gli arti inferiori\",\"\")","v":""},null,null,null,null,null,{"$f":"IF(E20<>\"\",A20,\"\")","v":""}]
["D4.05","PRESENZA DI UNA TASTIERA SEPARATA (OPACA E DOTATA DI MECCANISMO DI VARIAZIONE DELLA PENDENZA), UN MOUSE (O ALTRO DISPOSITIVO DI PUNTAMENTO) E UN IDONEO SUPPORTO CHE CONSENTA IL CORRETTO POSIZIONAMENTO DELLO SCHERMO NEL CASO DI UTILIZZO DI PC PORTATILI;","©",null,null,null,"",null,null,null,null,{"$f":"IF(E21=\"X\", \"Prevedere, per ogni postazione, la presenza di una tastiera opaca, regolabile in pendenza, un mouse e un idoneo supporto per consentire il corretto posizionamento dello schermo in caso di PC portatili\",\"\")","v":""},null,null,null,null,null,{"$f":"IF(E21<>\"\",A21,\"\")","v":""}]
["D4.06","PRESENZA DI PIANI DI LAVORO / SCRIVANIE REGOLABILI IN ALTEZZA;","℗",null,null,null,null,null,null,null,2,null,null,null,null,{"$f":"IF(I22=\"X\", \"Dotare gli ambienti di scrivanie e piani di lavoro regolabili in altezza\",\"\")","v":""},null,null,{"$f":"IF(I22<>\"\",A22,\"\")","v":""}]
["D4.07","PRESENZA DI SCRIVANIE DI DIMENSIONI MINIME 160 X 80 CM;","℗",null,null,null,null,null,null,null,3,null,null,null,null,{"$f":"IF(I23=\"X\", \"Dotare gli ambienti di scrivanie con dimensioni minime 160 x 80 cm\",\"\")","v":""},null,null,""]
["D4.08","PRESENZA DI SEDIE DOTATE DI POGGIATESTA E BRACCIOLI;","℗",null,null,null,null,null,null,null,2,null,null,null,null,{"$f":"IF(I24=\"X\", \"Dotare gli ambienti di sedie accessoriate con poggiatesta e braccioli\",\"\")","v":""},null,null,""]
["D4.09","PRESENZA DI DOCKING STATION PER PC PORTATILE;","℗",null,null,null,null,null,null,null,1,null,null,null,null,{"$f":"IF(I25=\"X\", \"Dotare le postazioni di lavoro di docking station per PC portatili\",\"\")","v":""},null,null,""]
["D4.10","PRESENZA DI MONITOR DI ALMENO 22 POLLICI / DOPPIO MONITOR;","℗",null,null,null,null,null,null,null,3,null,null,null,null,{"$f":"IF(I26=\"X\", \"Dotare le postazioni di monitor aventi dimensioni minime 22 pollici o prevedere la disponibilità di doppio monitor\",\"\")","v":""},null,null,""]
["D4.11","PRESENZA DI SUPPORTI PER POLSO O MOUSE E TASTIERE ERGONOMICI;","℗",null,null,null,null,null,null,null,1,null,null,null,null,{"$f":"IF(I27=\"X\", \"Dotare le postazioni di supporti per polso o mouse e tastiere ergonomiche\",\"\")","v":""},null,null,""]
["D4.12","PRESENZA DI CAVO HDMI;","℗",null,null,null,null,null,null,null,1,null,null,null,null,{"$f":"IF(I28=\"X\", \"Dotare le postazioni di cavo HDMI\",\"\")","v":""},null,null,""]
["D4.13","PRESENZA DI SUPPORTI DA TAVOLO PER SMARTPHONE O TABLET;","℗",null,null,null,null,null,null,null,2,null,null,null,null,{"$f":"IF(I29=\"X\", \"Dotare le postazioni di supporti da tavolo per smartphone e/o tablet\",\"\")","v":""},null,null,""]
["D4.14","PRESENZA DI COLLEGAMENTI CON STAMPANTE IN LOCO.","℗",null,null,null,null,null,null,null,1,null,null,null,null,{"$f":"IF(I30=\"X\", \"Dotare le postazioni di collegamenti con stampante\",\"\")","v":""},null,null,""]
["D4.15","POSTAZIONI DI LAVORO ADATTABILI AI LAVORATORI DIVERSAMENTE ABILI (ALMENO 1 OGNI 10) CON UN MINIMO DI 1 PER OGNI SPAZIO.","℗",null,null,null,null,null,null,null,3,null,null,null,null,{"$f":"IF(I31=\"X\", \"Predisporre postazioni di lavoro adattabili per lavoratori diversamente abili (1 postazione ogni 10 con un minimo di 1 postazione ogni spazio)\",\"\")","v":""},null,null,""]
["D5",{"$f":"CONCATENATE(\"COMFORT (ES RUMORE, RADIAZIONI, MICROCLIMA) \",IF(COUNTA(D33:F35,H36:J42)<>COUNTA(B33:B42),CHAR(10)&\"DA COMPLETARE\",IF(NCD5_<>0,CHAR(10)&\"SPAZIO CW NON CONFORME\",\"\")))","v":"COMFORT (ES RUMORE, RADIAZIONI, MICROCLIMA) \nDA COMPLETARE"},"© / ℗",{"$f":"COUNTIF(D33:D35,\"X\")","v":0},{"$f":"COUNTIF(E33:E35,\"X\")","v":0},{"$f":"COUNTIF(F33:F35,\"X\")","v":0},{"$f":"IF(COUNTA(D33:F35)=0,\"\",(COUNTA(B33:B35)-COUNTA(F33:F35)-SUM(G33:G35))/(COUNTA(B33:B35)-COUNTA(F33:F35))*10)","v":""},{"$f":"SUMIFS(K36:K42,H36:H42,\"X\")","v":0},{"$f":"SUMIFS(K36:K42,I36:I42,\"X\")","v":0},{"$f":"COUNTIF(J36:J42,\"X\")","v":0},{"$f":"IFERROR(IF(COUNTA(H36:J42)=0,\"\",H32/(H32+I32)*10),\"\")","v":""},{"$f":"IF(COUNTIFS(E33:E35,\"=x\")<>0,\"//\",\"\")","v":""},null,null,null,{"$f":"IF(COUNTIFS(I36:I42,\"=x\")<>0,\"//\",\"\")","v":""},null,{"$f":"CONCATENATE(IF(R33<>\"\",R33&CHAR(44)&CHAR(32),\"\"),IF(R34<>\"\",R34&CHAR(44)&CHAR(32),\"\"),IF(R35<>\"\",R35&CHAR(44)&CHAR(32),\"\"))","v":""},{"$f":"CONCATENATE(IF(S38<>\"\",S38&CHAR(44)&CHAR(32),\"\"),IF(S39<>\"\",S39&CHAR(44)&CHAR(32),\"\"),IF(S40<>\"\",S40&CHAR(44)&CHAR(32),\"\"),IF(S41<>\"\",S41&CHAR(44)&CHAR(32),\"\"),IF(S42<>\"\",S42&CHAR(44)&CHAR(32),\"\"))","v":""}]
["D5.01","ASSENZA DI POSTAZIONI DI LAVORO ADIACENTI AD ATTREZZATURE RUMOROSE: FOTOCOPIATRICI E STAMPANTI COLLOCATE IN LOCALI SEPARATI POSTAZIONI DI LAVORO ","©",null,null,null,{"$f":"IFERROR(IF(E33=\"X\",1,\"\"),\"\")","v":""},null,null,null,null,{"$f":"IF(E33=\"X\", \"Rimodulare il lay out dello spazio in modo da garantire distanza tra fonti rumorose (stampanti, fotocopiatrici, ecc) e scrivanie destinate a postazione di lavoro\",\"\")","v":""},null,null,null,null,null,{"$f":"IF(E33<>\"\",A33,\"\")","v":""}]
["D5.02","ASSENZA DI POSTAZIONI DI LAVORO ADIACENTI A QUADRI ELETTRICI O DISPOSITIVI WI-FI, PUNTI DI RICARICA BATTERIE, ECC;","©",null,null,null,"",null,null,null,null,{"$f":"IF(E34=\"X\", \"Rimodulare il lay out dello spazio in modo da garantire distanza tra fonti elettromagnetiche (quadri elettrici, WI-FI, punti di ricarica batterie, ecc) e scrivanie destinate a postazione di lavoro\",\"\")","v":""},null,null,null,null,null,{"$f":"IF(E34<>\"\",A34,\"\")","v":""}]
["D5.03","PRESENZA DI CONDIZIONI MICROCLIMATICHE DI TEMPERATURA, UMIDITÀ E VENTILAZIONE ADEGUATE E CONFORTEVOLI; NOTA (UFFICI CONSIGLIATI: INVERNO 20-22°C; ESTATE 26°C / UMIDITÀ 30-60% / VELOCITÀ ARIA TRA 0,05 E 0,2 M/SEC);","©",null,null,null,"",null,null,null,null,{"$f":"IF(E35=\"X\", \"Modificare le condizioni microclimatiche dell'ambiente in favore di parametri adeguati e confortevoli (vedere punto D5.03)\",\"\")","v":""},null,null,null,null,null,""]
["D5.04","PRESENZA NEGLI AMBIENTI DI ARREDI, CONTROSOFFITTATURE O PANNELLI MOBILI LIMITANTI LA PROPAGAZIONE E IL RIFLESSO DEL RUMORE;(VEDI APPROFONDIMENTO)","℗",null,null,null,null,null,null,null,3,null,null,null,null,{"$f":"IF(I36=\"X\", \"Dotare gli ambienti di dispositivi limitanti la propagazione e il riflesso del rumore (pareti mobili, arredi e/o controsoffittature, ecc)\",\"\")","v":""},null,null,{"$f":"IF(I36<>\"\",A36,\"\")","v":""}]
["D5.05","PRESENZA DI PHONE BOOTH;","℗",null,null,null,null,null,null,null,3,null,null,null,null,{"$f":"IF(I37=\"X\", \"Dotare gli ambienti di spazi dedicati e riservati per le telefonate (phone booth)\",\"\")","v":""},null,null,""]
["D5.06","PRESENZA DI ARREDI E PARETI CON TONALITÀ NEUTRA NON RIFLETTENTE;","℗",null,null,null,null,null,null,null,2,null,null,null,null,{"$f":"IF(I38=\"X\", \"Dotare gli ambienti di arredi e pareti con tonalità neutra non riflettente\",\"\")","v":""},null,null,""]
["D5.07","ORIENTAMENTO PREFERENZIALE EST – OVEST DEGLI UFFICI;","℗",null,null,null,null,null,null,null,3,null,null,null,null,{"$f":"IF(I39=\"X\", \"Preferire ambienti con orientamento EST-OVEST\",\"\")","v":""},null,null,""]
["D5.08","PRESENZA DI PIANTE UTILI A FILTRARE L’ARIA E A PURIFICARE DA SOSTANZE NOCIVE;","℗",null,null,null,null,null,null,null,1,null,null,null,null,{"$f":"IF(I40=\"X\", \"Dotare gli ambienti di piante per la purificazione e pulizia dell'aria\",\"\")","v":""},null,null,""]
["D5.09","PRESENZA DI TERRAZZE, CORTI INTERNE E GIARDINI;","℗",null,null,null,null,null,null,null,3,null,null,null,null,{"$f":"IF(I41=\"X\", \"Preferire ambienti dotati di terrazze, corti interne e/o giardini\",\"\")","v":""},null,null,""]
["D5.10","IL TEMPO DI RIVERBERO DEL RUMORE DEL LOCALE E' INFERIORE A 1,2 (VEDERE FOGLIO T_riverb)","℗",null,null,null,null,null,null,null,3,null,null,null,null,{"$f":"IF(I42=\"X\", \"Dotare gli ambienti di arredi e/o accessori utili a ridurre il tempo di riverbero (utilizzare il fglio di calcolo dedicato) \",\"\")","v":""},null,null,""]
["D7",{"$f":"CONCATENATE(\"ALLESTIMENTI E FINITURE  \",IF(COUNTA(H44:J53)<>COUNTA(B44:B53),CHAR(10)&\"DA COMPLETARE\",))","v":"ALLESTIMENTI E FINITURE  \nDA COMPLETARE"},"© / ℗",null,null,null,null,{"$f":"SUMIFS(K44:K53,H44:H53,\"X\")","v":0},{"$f":"SUMIFS(K44:K53,I44:I53,\"X\")","v":0},{"$f":"COUNTIF(J44:J46,\"X\")","v":0},{"$f":"IFERROR(IF(COUNTA(H44:J53)=0,\"\",H43/(H43+I43)*10),\"\")","v":""},null,null,null,null,{"$f":"IF(COUNTIFS(I44:I53,\"=x\")<>0,\"//\",\"\")","v":""},null,null,{"$f":"CONCATENATE(IF(S44<>\"\",S44&CHAR(44)&CHAR(32),\"\"),IF(S45<>\"\",S45&CHAR(44)&CHAR(32),\"\"),IF(S46<>\"\",S46&CHAR(44)&CHAR(32),\"\"),IF(S47<>\"\",S47&CHAR(44)&CHAR(32),\"\"),IF(S48<>\"\",S48&CHAR(44)&CHAR(32),\"\"),IF(S49<>\"\",S49&CHAR(44)&CHAR(32),\"\"),IF(S50<>\"\",S50&CHAR(44)&CHAR(32),\"\"),IF(S51<>\"\",S51&CHAR(44)&CHAR(32),\"\"),IF(S52<>\"\",S52&CHAR(44)&CHAR(32),\"\"),IF(S53<>\"\",S53&CHAR(44)&CHAR(32),\"\"))","v":""}]
["D7.01","POSSIBILITÀ DI MODIFICA DEL LAY-OUT E DELLE POSTAZIONI INTERNE PER MEZZO DI PARETI MOBILI;","℗",null,null,null,null,null,null,null,2,null,null,null,null,{"$f":"IF(I44=\"X\", \"Dotare gli ambienti di barriere mobili al fine di consentire agevoli modifiche del lay out \",\"\")","v":""},null,null,{"$f":"IF(I44<>\"\",A44,\"\")","v":""}]
["D7.02","PRESENZA DI TELEFONI DI SERVIZIO A DISPOSIZIONE DEGLI UTENTI;","℗",null,null,null,null,null,null,null,1,null,null,null,null,{"$f":"IF(I45=\"X\", \"Dotare gli ambienti di telefoni di servizio da mettere a disposizione degli utenti\",\"\")","v":""},null,null,{"$f":"IF(I45<>\"\",A45,\"\")","v":""}]
["D7.03","PRESENZA DI PC DI CORTESIA DA METTERE A DISPOSIZIONE DEGLI UTENTI;","℗",null,null,null,null,null,null,null,2,null,null,null,null,{"$f":"IF(I46=\"X\", \"Dotare gli ambienti di pc di cortesia da mettere a disposizione degli utenti\",\"\")","v":""},null,null,""]
["D7.04","PRESENZA DI ARMADIETTI, CON SERRATURA, DOVE RIPORRE GLI EFFETTI PERSONALI;","℗",null,null,null,null,null,null,null,3,null,null,null,null,{"$f":"IF(I47=\"X\", \"Dotare gli ambienti di armadietti con serratura (uno per ogni postazione di lavoro disponibile)\",\"\")","v":""},null,null,""]
["D7.05","PRESENZA DI STAMPANTI DOTATE DI SCANNER;","℗",null,null,null,null,null,null,null,3,null,null,null,null,{"$f":"IF(I48=\"X\", \"Dotare gli ambienti di stampanti con scanner\",\"\")","v":""},null,null,""]
["D7.06","PRESENZA DI PIÙ POSTAZIONI DOTATE DI STAMPANTI;","℗",null,null,null,null,null,null,null,2,null,null,null,null,{"$f":"IF(I49=\"X\", \"Dotare gli ambienti di più postazioni per stampanti\",\"\")","v":""},null,null,""]
["D7.07","DISPONIBILITÀ DI RACCOGLI CAVI;","℗",null,null,null,null,null,null,null,1,null,null,null,null,{"$f":"IF(I50=\"X\", \"Dotare ogni postazione di lavoro di raccogli cavi\",\"\")","v":""},null,null,""]
["D7.08","PRESENZA DI LAMPADE PER OGNI POSTAZIONE DI LAVORO;","℗",null,null,null,null,null,null,null,2,null,null,null,null,{"$f":"IF(I51=\"X\", \"Dotare ogni postazione di lavoro di lampade da tavolo\",\"\")","v":""},null,null,""]
["D7.09","PRESENZA DI DISTRIBUTORI AUTOMATICI DI CIBO E BEVANDE;","℗",null,null,null,null,null,null,null,3,null,null,null,null,{"$f":"IF(I52=\"X\", \"Dotare gli ambienti di distributori automatici di cibo e bevande\",\"\")","v":""},null,null,""]
["D7.10","PRESENZA DI POSTAZIONI DI RICARICA WIRELESS.","℗",null,null,null,null,null,null,null,1,null,null,null,null,{"$f":"IF(I53=\"X\", \"Dotare gli ambienti di postazioni di ricarica wireless\",\"\")","v":""},null,null,""]
["F1",{"$f":"CONCATENATE(\"IMPIANTO ELETTRICO\",IF(COUNTA(H55:J58)<>COUNTA(B55:B58),CHAR(10)&\"DA COMPLETARE\",\"\"))","v":"IMPIANTO ELETTRICO\nDA COMPLETARE"},"© / ℗",null,null,null,null,{"$f":"SUMIFS(K55:K58,H55:H58,\"X\")","v":0},{"$f":"SUMIFS(K55:K58,I55:I58,\"X\")","v":0},{"$f":"COUNTIF(J55:J58,\"X\")","v":0},{"$f":"IFERROR(IF(COUNTA(H55:J58)=0,\"\",H54/(H54+I54)*10),\"\")","v":""},null,null,null,null,{"$f":"IF(COUNTIFS(I55:I58,\"=x\")<>0,\"//\",\"\")","v":""},null,null,{"$f":"CONCATENATE(IF(S55<>\"\",S55&CHAR(44)&CHAR(32),\"\"),IF(S56<>\"\",S56&CHAR(44)&CHAR(32),\"\"),IF(S57<>\"\",S57&CHAR(44)&CHAR(32),\"\"),IF(S58<>\"\",S58&CHAR(44)&CHAR(32),\"\"))","v":""}]
["F1.01","PRESENZA DI UN (SOTTO)QUADRO ELETTRICO DEDICATO ALLO SPAZIO IN ESAME, POSIZIONATO IN LOCALE FACILMENTE ACCESSIBILE ED ADEGUATAMENTE AERATO (CHIUSO A CHIAVE E DOTATO DI SEGNALETICA DI SICUREZZA)","℗",null,null,null,null,null,null,null,2,null,null,null,null,{"$f":"IF(I55=\"X\", \"Dotare gli ambienti di un sotto quadro elettrico dedicato in via esclusiva allo spazio\",\"\")","v":""},null,null,{"$f":"IF(I55<>\"\",A55,\"\")","v":""}]
["F1.02","PRESENZA DI ALMENO 4 PRESE ELETTRICHE PER OGNI POSTAZIONE DI LAVORO INDIVIDUATA (RISPETTIVAMENTE PER TELEFONO, PC, SCHERMO, LAMPADA)","℗",null,null,null,null,null,null,null,2,null,null,null,null,{"$f":"IF(I56=\"X\", \"Dotare le postazioni di almeno 4 prese elettriche, per pc, monitor, telefono e lampada\",\"\")","v":""},null,null,""]
["F1.03","PRESENZA, NEI CORRIDOI E NELLE AREE COMUNI, DI PRESE SUFFICIENTI PER IL COLLEGAMENTO DI APPARECCHIATURE CONDIVISE IN RETE (STAMPANTI, SCANNER, FAX, FOTOCOPIATRICI, ECC.)","℗",null,null,null,null,null,null,null,1,null,null,null,null,{"$f":"IF(I57=\"X\", \"Dotare i corridoi e le aree comuni di prese sufficienti per il collegamento delle apparecchiature condivise in rete\",\"\")","v":""},null,null,""]
["F1.04","PRESENZA DI CENTRALE UPS DI EMERGENZA","℗",null,null,null,null,null,null,null,3,null,null,null,null,{"$f":"IF(I58=\"X\", \"Dotare gli ambienti di centrale UPS di emergenza\",\"\")","v":""},null,null,""]
[null,"VALORE TOTALE RISCONTRI AMMISSIBILI",null,{"$f":"10*COUNTA(A16,A32)","v":20},{"$f":"SUM(G16,G32)","v":0},null,null,{"$f":"10*COUNTA(A16,A32,A43,A54)","v":40},{"$f":"SUM(K16,K32,K43,K54)","v":0}]
[]
[]
["VALUTAZIONE"]
[]
["INDICE DI EFFICIENZA COMPLESSIVO COGENZE ",null,{"$f":"IF(AND(E59=0),\"-\",E59/D59*10)","v":"-"},null,"INDICE DI EFFICIENZA COMPLESSIVO PREFERENZE ",null,null,null,{"$f":"IF(AND(I59=0),\"-\",I59/H59*10)","v":"-"}]

{"sheet":"ORGANIZZAZIONE","index":5,"n_rows":31,"n_cols":19,"rows_kept":31,"cut":false,"hidden":false,"merged":[[8,13,8,16],[7,1,7,2],[7,3,7,5],[7,6,7,7],[7,8,7,9],[7,11,7,12],[7,13,7,16],[8,1,8,2],[8,3,8,5],[8,6,8,7],[8,8,8,9],[8,11,8,12],[9,1,9,2],[9,3,9,5],[9,6,9,7],[9,11,9,15],[10,1,10,2],[10,3,10,5],[10,6,10,7],[10,11,10,12],[10,13,10,14],[12,3,12,10],[12,11,13,16],[13,3,13,6],[13,7,13,10],[14,11,14,14],[14,15,14,16],[15,11,15,14],[15,15,15,16],[16,11,16,14],[16,15,16,16],[17,11,17,14],[17,15,17,16],[18,11,18,14],[18,15,18,16],[19,11,19,14],[19,15,19,16],[20,11,20,14],[20,15,20,16],[28,0,28,16],[30,0,30,1],[21,11,21,14],[21,15,21,16],[22,11,22,14],[22,15,22,16],[25,1,25,2],[23,11,23,14],[23,15,23,16],[24,11,24,14],[24,15,24,16]]}
[]
["Analisi conformità spazio da adibire a COWORKING"]
[]
[null,null,null,null,null,null,null,null,null,null,null,null,null,null,null,null,"Codice del documento:"]
["CHECK LIST DI VERIFICA SPAZIO COWORKING (ORGANIZZAZIONE)",null,null,null,null,null,null,null,null,null,null,null,null,null,null,null,"=SINTESI!P5"]
["Rif. D.Lgs. 81/2008 - Allegato IV - Regolamenti edilizi e di igiene"]
[]
["CITTA'",{"$f":"SINTESI!B8","v":"--"},null,"A1 INQUADRAMENTO LOGISTICO TERRITORIALE",null,null,{"$f":"SINTESI!G8","v":0},null,"N° Piano coworking",null,{"$f":"PCW","v":0},"REFERENTE",null,{"$f":"SINTESI!L8","v":"--"}]
["VIA",{"$f":"SINTESI!B9","v":"--"},null,"A2 TIPOLOGIA DI EDIFICIO \nAnno instaurazione destinazione ufficio",null,null,{"$f":"SINTESI!G9","v":0},null,"Superficie Piano coworking m2",null,{"$f":"SPC","v":0},"CONTATTO",null,{"$f":"SINTESI!P8","v":"--"}]
["CIVICO",{"$f":"SINTESI!B10","v":"--"},null,"B1 DIMENSIONI DELLE SEDI \nAffollamento del piano coworking (n° persone)",null,null,{"$f":"SINTESI!G10","v":0},null,null,null,null,"AFFOLLAMENTO POTENZIALE ALTRI PIANI",null,null,null,null,{"$f":"SINTESI!M10","v":0}]
["PIANO",{"$f":"SINTESI!B11","v":"--"},null,"B2 CLASSIFICAZIONE DEGLI SPAZI",null,null,{"$f":"SINTESI!G11","v":0},null,null,null,null,"CATEGORIA UFFICI",null,{"$f":"SINTESI!L11","v":""},null,"DATA",{"$f":"SINTESI!R8","v":"--"}]
[]
[null,null,null,"VALUTAZIONE",null,null,null,null,null,null,null,"NOTE"]
[null,null,null,"CARATTERISTICHE COGENTI",null,null,null,"CARATTERISTICHE PREFERENZIALI"]
["CODICE DEL RISCONTRO","DESCRIZIONE DEL RISCONTRO","TIPO RISCONTRO","C ","NC","NA","PUNTEGGIO COGENZE","PRESENTE","ASSENTE","NA","PUNTEGGIO PREFERENZE ","AZIONI CORRETTIVE DA ATTIVARE",null,null,null,"AZIONI DI MIGLIORAMENTO DA ATTIVARE",null,"RIEPILOGO PUNTI AC","RIEPILOGO PUNTI AM"]
["G1","Organizzazione","© / ℗",{"$f":"COUNTIF(D17:D25,\"X\")","v":0},{"$f":"COUNTIF(E17:E25,\"X\")","v":0},{"$f":"COUNTIF(F17:F25,\"X\")","v":0},{"$f":"IF(COUNTA(D17:F25)=0,\"\",(COUNTA(B17:B25)-COUNTA(F17:F25)-SUM(G17:G25))/(COUNTA(B17:B25)-COUNTA(F17:F25))*10)","v":10},null,null,null,{"$f":"IFERROR(IF(COUNTA(#REF!)=0,\"\",H16/(H16+I16)*10),\"\")","v":""},{"$f":"IF(COUNTIFS(E17:E23,\"=x\")<>0,\"//\",\"\")","v":""},null,null,null,null,null,{"$f":"CONCATENATE(IF(R17<>\"\",R17&CHAR(44)&CHAR(32),\"\"),IF(R18<>\"\",R18&CHAR(44)&CHAR(32),\"\"),IF(R19<>\"\",R19&CHAR(44)&CHAR(32),\"\"),IF(R20<>\"\",R20&CHAR(44)&CHAR(32),\"\"),IF(R21<>\"\",R21&CHAR(44)&CHAR(32),\"\"),IF(R22<>\"\",R22&CHAR(44)&CHAR(32),\"\"),IF(R23<>\"\",R23&CHAR(44)&CHAR(32),\"\"))","v":""}]
["G1.01","PRESENZA DI UN SISTEMA DI GESTIONE DEGLI ACCESSI","©",1,null,null,{"$f":"IFERROR(IF(E17=\"X\",1,\"\"),\"\")","v":""},null,null,null,null,{"$f":"IF(E17=\"X\", \"Dotare lo spazio di un sistema di controllo accessi, con personale in loco o attraverso tecnologia dedicata (es. chiave smart, QR code, APP, ecc)\",\"\")","v":""},null,null,null,null,null,{"$f":"IF(E17<>\"\",A17,\"\")","v":""}]
["G1.02","PRESENZA DI UN SISTEMA DI PRENOTAZIONE DELLA POSTAZIONE","©",null,null,null,"",null,null,null,null,{"$f":"IF(E18=\"X\", \"Dotare lo spazio di un sistema per la prenotazione delle postazioni di lavoro\",\"\")","v":""},null,null,null,null,null,{"$f":"IF(E18<>\"\",A18,\"\")","v":""}]
["G1.03","PRESENZA DI SEGNALETICA, ANCHE PER DIVERSAMENTE ABILI, CHE EVIDENZI ED INDIVIDUI GLI SPAZI DESTINATI AL COWORKING ED I PERCORSI PER RAGGIUNGERLI ","©",null,null,null,{"$f":"IFERROR(IF(E19=\"X\",1,\"\"),\"\")","v":""},null,null,null,null,{"$f":"IF(E19=\"X\", \"Predisporre idonea segnaletica, anche per diversamenti abili, che evidenzi ed individui gli spazi destinati al coworking ed i percorsi per raggiungerli\",\"\")","v":""},null,null,null,null,null,""]
["G1.04","PRESENZA DI SEGNALETICA DI SICUREZZA INDICANTE I PERCORSI DI ESODO,  LE USCITE DI EMERGENZA, GLI SPAZI CALMI E I PUNTI DI RACCOLTA ESTERNI","©",null,null,null,{"$f":"IFERROR(IF(E20=\"X\",1,\"\"),\"\")","v":""},null,null,null,null,{"$f":"IF(E20=\"X\", \"Dotare i locali di segnaletica di sicurezza indicante i percorsi di esodo, le uscite di emergenza, gli spazi calmi e i punti di raccolta esterni\",\"\")","v":""},null,null,null,null,null,""]
["G1.05","PRESENZA DI PRESIDI (CASSETTA DI PRONTO SOCCORSO, ECC) E DI  PROCEDURE PER LA GESTIONE DELLE EMERGENZE ALL'INTERNO DELLO SPAZIO DESTINATO A COWORKING","©",null,null,null,{"$f":"IFERROR(IF(E21=\"X\",1,\"\"),\"\")","v":""},null,null,null,null,{"$f":"IF(E21=\"X\", \"Dotare i locali di presidi di soccorso e predisporre specifiche procedure per la gestione delle emergenze\",\"\")","v":""},null,null,null,null,null,""]
["G1.06","PRESENZA DI PROCEDURA PER LA GESTIONE DI EVENTUALI LAVORATORI IN SOLITUDINE","©",null,null,null,{"$f":"IFERROR(IF(E22=\"X\",1,\"\"),\"\")","v":""},null,null,null,null,{"$f":"IF(E22=\"X\", \"Redigere una specifica procedura per la gestione del lavoro in solitudine\",\"\")","v":""},null,null,null,null,null,""]
["G1.07","PRESENZA DI UN PROTOCOLLO DI GESTIONE PER L'EMERGENZA COVID - 19","©",null,null,null,{"$f":"IFERROR(IF(E23=\"X\",1,\"\"),\"\")","v":""},null,null,null,null,{"$f":"IF(E23=\"X\", \"Predisporre specifico protocollo per la gestione dell'emergenza COVID-19\",\"\")","v":""},null,null,null,null,null,""]
["G1.08","ASSENZA DI INTERFERENZE CON ALTRE ATTIVITA' INTERNE O ESTERNE ALL'AMMINISTRAZIONE (ES. ATTRAVERSAMENTO DI VANI TECNICI, DI ALTRI UFFICI, DI LOCALI CON DATI SENSIBILI, ECC) ","©",null,null,null,{"$f":"IFERROR(IF(E24=\"X\",1,\"\"),\"\")","v":""},null,null,null,null,{"$f":"IF(E24=\"X\", \"Organizzare i percorsi e le attività in funzione della riduzione ed eliminazione delle interferenze con le altre attività presenti all'interno dello stabile ospitante gli spazi di coworking \",\"\")","v":""},null,null,null,null,null,{"$f":"IF(E24<>\"\",A24,\"\")","v":""}]
["G1.09","PRESENZA DI BARRIERE E/O DIVIETI CHE IMPEDISCANO L'ACCESSO AD AREE O AMBIENTI NON DESTINATI AGLI SPAZI DI COWORKING","©",null,null,null,"",null,null,null,null,{"$f":"IF(E25=\"X\", \"Predisporre delimitazioni e/o cartelli di divieto in corrispondenza dei punti di accesso a zone non destinate agli spazi di coworking \",\"\")","v":""},null,null,null,null,null,""]
[null,"VALORE TOTALE RISCONTRI AMMISSIBILI",null,{"$f":"10*COUNTA(A16)","v":10},{"$f":"RIFD4C.2","v":10}]
[]
[]
["VALUTAZIONE"]
[]
["INDICE DI EFFICIENZA COMPLESSIVO COGENZE ",null,{"$f":"IF(AND(E26=\"\"),\"-\",E26/D26*10)","v":10}]

{"sheet":"T_riverb","index":6,"n_rows":33,"n_cols":13,"rows_kept":33,"cut":false,"hidden":false,"merged":[]}
[null,"Pavimenti_Soffitti","Coeff","Superficie","Area corretta"]
[null,"Cemento_Marmette_Gres",{"$f":"IFERROR(INDIRECT(B2),\"\")","v":0.05},null,{"$f":"IFERROR(D2*C2,\"\")","v":0}]
[null,"Legno_parquet_o_soffitti",{"$f":"IFERROR(INDIRECT(B3),\"\")","v":0.08},null,0,null,null,null,null,null,null,"Pavimenti_Soffitti"]
[null,"Gomma_piastrelle",7.0000000000000007E-2,null,0,null,null,null,null,null,null,"Cemento_Marmette_Gres",0.05]
[null,"Moquette_rasa",0.25,null,0,null,null,null,null,null,null,"Legno_parquet_o_soffitti",0.08]
[null,"Moquette_media_",0.38,null,0,null,null,null,null,null,null,"Gomma_piastrelle",7.0000000000000007E-2]
[null,"Tappeti_valore_medio",0.21,null,0,null,null,null,null,null,null,"Moquette_rasa",0.25]
[null,"Linoleum",0.03,null,0,null,null,null,null,null,null,"Moquette_media_",0.38]
[null,"Superifici_laterali",null,null,null,null,null,null,null,null,null,"Tappeti_valore_medio",0.21]
[null,"Intonaco_standard",0.05,null,{"$f":"IFERROR(D10*C10,\"\")","v":0},null,null,null,null,null,null,"Linoleum",0.03]
[null,"Muratura_in_mattoni",0.04,null,{"$f":"IFERROR(D11*C11,\"\")","v":0}]
[null,"Calcestruzzo",0.02,null,0]
[null,"Infisso_in_vetro_valore_medio",0.17,null,0,null,null,null,null,null,null,"Superifici_laterali"]
[null,"Vetro_a_parete",0.02,null,0,null,null,null,null,null,null,"Intonaco_standard",0.05]
[null,"Varie",null,null,null,null,null,null,null,null,null,"Muratura_in_mattoni",0.04]
[null,"Tende_leggere_appese_a_pieghe",0.18,null,{"$f":"IFERROR(D16*C16,\"\")","v":0},null,null,null,null,null,null,"Calcestruzzo",0.02]
[null,"Tende_pesanti_appese_a_pieghe",0.25,null,0,null,null,null,null,null,null,"Infisso_in_vetro_valore_medio",0.17]
[null,"Pannelli_fibra_media_densità_spessore_2_5_cm",0.55000000000000004,null,0,null,null,null,null,null,null,"Vetro_a_parete",0.02]
[null,"Pannelli_fibra_media_densità_spessore_5_cm",0.6,null,0]
[null,"Varie_per_m2"]
[null,"Sedia_di_legno_o_parzialmente_imbottita_non_occupata",0.08,null,{"$f":"IFERROR(D21*C21,\"\")","v":0},null,null,null,null,null,null,"Varie"]
[null,"Sedia_di_legno_o_parzialmente_imbottita_occupata",0.34,null,0,null,null,null,null,null,null,"Tende_leggere_appese_a_pieghe",0.18]
[null,"Poltroncina_imbottina_non_occupata",0.26,null,0,null,null,null,null,null,null,"Tende_pesanti_appese_a_pieghe",0.25]
[null,"Poltroncina_imbottina_occupata",0.41,null,0,null,null,null,null,null,null,"Pannelli_fibra_media_densità_spessore_2_5_cm",0.55000000000000004]
[null,"Persona",0.35,null,0,null,null,null,null,null,null,"Pannelli_fibra_media_densità_spessore_5_cm",0.6]
[null,"Volume del locale",{"$f":"42*3","v":126},null,{"$f":"SUM(E2:E25)","v":0}]
[null,"Triv=",{"$f":"0.161*C26/E26","v":{"$error":"#DIV/0!"}},"condizione di adeguatezza < 1,2"]
[null,null,null,null,null,null,null,null,null,null,null,"Varie_per_m2"]
[null,null,null,null,null,null,null,null,null,null,null,"Sedia_di_legno_o_parzialmente_imbottita_non_occupata",0.08]
[null,null,null,null,null,null,null,null,null,null,null,"Sedia_di_legno_o_parzialmente_imbottita_occupata",0.34]
[null,null,null,null,null,null,null,null,null,null,null,"Poltroncina_imbottina_non_occupata",0.26]
[null,null,null,null,null,null,null,null,null,null,null,"Poltroncina_imbottina_occupata",0.41]
[null,null,null,null,null,null,null,null,null,null,null,"Persona",0.35]

{"sheet":"Riepilogo AC","index":7,"n_rows":6,"n_cols":10,"rows_kept":6,"cut":false,"hidden":false,"merged":[[5,2,5,10],[6,2,6,10],[7,2,7,10],[8,2,8,10],[4,9,4,10],[4,6,4,7],[4,3,4,4],[0,8,0,10],[1,8,1,10],[2,8,2,10],[15,2,15,10],[16,2,16,10],[17,2,17,10],[12,2,12,10],[13,2,13,10],[14,2,14,10],[9,2,9,10],[10,2,10,10],[11,2,11,10],[24,2,24,10],[25,2,25,10],[26,2,26,10],[21,2,21,10],[22,2,22,10],[23,2,23,10],[18,2,18,10],[19,2,19,10],[20,2,20,10],[33,2,33,10],[34,2,34,10],[35,2,35,10],[30,2,30,10],[31,2,31,10],[32,2,32,10],[27,2,27,10],[28,2,28,10],[29,2,29,10],[42,2,42,10],[43,2,43,10],[44,2,44,10],[39,2,39,10],[40,2,40,10],[41,2,41,10],[36,2,36,10],[37,2,37,10],[38,2,38,10],[51,2,51,10],[52,2,52,10],[53,2,53,10],[48,2,48,10],[49,2,49,10],[50,2,50,10],[45,2,45,10],[46,2,46,10],[47,2,47,10],[60,2,60,10],[61,2,61,10],[62,2,62,10],[57,2,57,10],[58,2,58,10],[59,2,59,10],[54,2,54,10],[55,2,55,10],[56,2,56,10],[69,2,69,10],[70,2,70,10],[71,2,71,10],[66,2,66,10],[67,2,67,10],[68,2,68,10],[63,2,63,10],[64,2,64,10],[65,2,65,10],[78,2,78,10],[79,2,79,10],[80,2,80,10],[75,2,75,10],[76,2,76,10],[77,2,77,10],[72,2,72,10],[73,2,73,10],[74,2,74,10],[87,2,87,10],[88,2,88,10],[89,2,89,10],[84,2,84,10],[85,2,85,10],[86,2,86,10],[81,2,81,10],[82,2,82,10],[83,2,83,10],[99,2,99,10],[96,2,96,10],[97,2,97,10],[98,2,98,10],[93,2,93,10],[94,2,94,10],[95,2,95,10],[90,2,90,10],[91,2,91,10],[92,2,92,10]]}
[null,null,null,null,null,null,null,null,"Codice del documento:"]
["CHECK LIST DI VERIFICA SPAZIO COWORKING - RIEPILOGO AZIONI CORRETTIVE",null,null,null,null,null,null,null,"M01"]
[]
[]
["CITTA'",{"$f":"SINTESI!B8","v":"--"},"VIA",{"$f":"SINTESI!B9","v":"--"},null,"CIVICO",{"$f":"SINTESI!B10","v":"--"},null,"PIANO",{"$f":"SINTESI!B11","v":"--"}]
["CODICE DEL RISCONTRO","DESCRIZIONE DEL RISCONTRO","RIEPOLOGO PUNTI AZIONI CORRETTIVE"]

{"sheet":"Riepilogo AM","index":8,"n_rows":6,"n_cols":10,"rows_kept":6,"cut":false,"hidden":false,"merged":[[5,2,5,10],[6,2,6,10],[0,8,0,10],[1,8,1,10],[2,8,2,10],[4,3,4,4],[4,6,4,7],[4,9,4,10],[7,2,7,10],[8,2,8,10],[9,2,9,10],[10,2,10,10],[11,2,11,10],[12,2,12,10],[13,2,13,10],[20,2,20,10],[21,2,21,10],[22,2,22,10],[23,2,23,10],[24,2,24,10],[25,2,25,10],[14,2,14,10],[15,2,15,10],[16,2,16,10],[17,2,17,10],[18,2,18,10],[19,2,19,10],[32,2,32,10],[33,2,33,10],[34,2,34,10],[35,2,35,10],[36,2,36,10],[37,2,37,10],[26,2,26,10],[27,2,27,10],[28,2,28,10],[29,2,29,10],[30,2,30,10],[31,2,31,10],[44,2,44,10],[45,2,45,10],[46,2,46,10],[47,2,47,10],[48,2,48,10],[49,2,49,10],[38,2,38,10],[39,2,39,10],[40,2,40,10],[41,2,41,10],[42,2,42,10],[43,2,43,10],[56,2,56,10],[57,2,57,10],[58,2,58,10],[59,2,59,10],[60,2,60,10],[61,2,61,10],[50,2,50,10],[51,2,51,10],[52,2,52,10],[53,2,53,10],[54,2,54,10],[55,2,55,10],[68,2,68,10],[69,2,69,10],[70,2,70,10],[71,2,71,10],[72,2,72,10],[73,2,73,10],[62,2,62,10],[63,2,63,10],[64,2,64,10],[65,2,65,10],[66,2,66,10],[67,2,67,10],[80,2,80,10],[81,2,81,10],[82,2,82,10],[83,2,83,10],[84,2,84,10],[85,2,85,10],[74,2,74,10],[75,2,75,10],[76,2,76,10],[77,2,77,10],[78,2,78,10],[79,2,79,10],[98,2,98,10],[99,2,99,10],[92,2,92,10],[93,2,93,10],[94,2,94,10],[95,2,95,10],[96,2,96,10],[97,2,97,10],[86,2,86,10],[87,2,87,10],[88,2,88,10],[89,2,89,10],[90,2,90,10],[91,2,91,10]]}
[null,null,null,null,null,null,null,null,"Codice del documento:"]
["CHECK LIST DI VERIFICA SPAZIO COWORKING - RIEPILOGO MIGLIORAMENTO",null,null,null,null,null,null,null,"M01"]
[]
[]
["CITTA'",{"$f":"SINTESI!B8","v":"--"},"VIA",{"$f":"SINTESI!B9","v":"--"},null,"CIVICO",{"$f":"SINTESI!B10","v":"--"},null,"PIANO",{"$f":"SINTESI!B11","v":"--"}]
["CODICE DEL RISCONTRO","DESCRIZIONE DEL RISCONTRO","RIEPILOGO PUNTI AZIONI DI MIGLIORAMENTO"]